Workbook

Sheet Aloitus
K2: =D19 -> Versio 2.0
D13: Rakennuksen E-luvun arviointilaskuri
D15: Suomen rakentamismääräyskokoelma
D19: Versio 2.0
D21: 2019-10-30

Sheet Ohje
K2: =Aloitus!K2 -> Versio 2.0
D6: Tietoja ohjelmasta ja E-luvusta

Sheet Mitoitus
AX1: 2
K2: =Aloitus!K2 -> Versio 2.0 | X2: =Aloitus!K2 -> Versio 2.0 | AK2: =Aloitus!K2 -> Versio 2.0 | AX2: 2
C3: Suunnittelutoimisto | H3: Työn nro | J3: Sivu | P3: =C3 -> Suunnittelutoimisto | U3: =H3 -> Työn nro | W3: =J3 -> Sivu | AC3: =P3 -> Suunnittelutoimisto | AH3: =U3 -> Työn nro | AJ3: =W3 -> Sivu
C4: x | H4: x | J4: 1 / 3 | P4: =C4 -> x | U4: x | W4: 2 / 3 | AC4: =P4 -> x | AH4: x | AJ4: 3 / 3
H5: Päiväys | I5: Tekijä | U5: Päiväys | V5: =I5 -> Tekijä | AH5: Päiväys | AI5: =V5 -> Tekijä
H6: x | I6: x | U6: x | V6: =I6 -> x | AH6: x | AI6: =V6 -> x
C7: Rakennuskohde | H7: Sisältö | P7: =C7 -> Rakennuskohde | U7: Sisältö | AC7: =P7 -> Rakennuskohde | AH7: Sisältö
C8: x | H8: Rakennuksen E-luvun arviointilaskuri | P8: =C8 -> x | U8: Rakennuksen E-luvun arviointilaskuri | AC8: =P8 -> x | AH8: Rakennuksen E-luvun arviointilaskuri
D13: RAKENNUKSEN TIEDOT | K13: Info | Q13: ILMANVAIHDON TIEDOT | X13: Info | AD13: LASKENTATULOKSET VALITUILLA ARVOILLA | AK13: Info
D14: Rakennusluokka | G14: Erillinen pientalo, 50 … 150 m2
Q15: Koneellinen ilmanvaihto | U15: Normaalilla hyötysuhteella toimiva ilmanvaihto | AI15: Energiamuotojen kertoimet
D16: Lämmitetty nettopinta-ala, Anetto | G16: 149.6 | H16: m2 | AI16: 1,20 - sähkö
I17: Rakennusvaipan massiivisuus | Q17: IV-koneen LTO:n poistoilman vuosihyötysuhde | U17: =CHOOSE(Koneellinen_ilmanvaihtoV,0.77,0.61,0.49) -> 0.61 | AI17: 0,50 - kaukolämpö
D18: Kerroslukumäärä | G18: 1 | I18: Kevytrakenteinen | AI18: 1,00 - fossiiliset polttoaineet
Q19: SFP-luku | U19: =CHOOSE(Koneellinen_ilmanvaihtoV,1.5,1.75,2) -> 1.75 | V19: kW/(m3/s) | AI19: 0,50 - rakennuksessa käytettävät
D20: RAKENTEIDEN TIEDOT | K20: Info | AI20: uusiutuvat polttoaineet
F21: Pinta-ala | G21: U-arvon | H21: Käytettävä | Q21: Tuloilman lämpötila jälkilämmityspatterin jälkeen | U21: 18 | V21: °C
G22: vertailuarvo | H22: U-arvo | AI22: Laskennassa käytetyt U-arvot [W/m2K]
F23: m2 | G23: W/m2K | H23: W/m2K | J23: Ulkoseinän tyyppi | Q23: Jälkilämmityspatteri | U23: Kytketty lämmitysjärjestelmään | AI23: Ulkoseinät | AK23: =$H$24 -> 0.17
D24: Ulkoseinät | F24: 113 | G24: =CHOOSE(Ulkoseinän_tyyppiV,0.4,0.17) -> 0.17 | H24: 0.17 | J24: Muu seinätyyppi | AI24: Yläpohja | AK24: =$H$26 -> 0.09
Q25: Ilmanvuotoluku (q50) | U25: 4 | V25: m3/(hm2) | AI25: Alapohja | AK25: =$H$28 -> 0.17
D26: Yläpohja | F26: 149.6 | G26: 0.09 | H26: 0.09 | AI26: Kattoikkunat | AK26: =$H$30 -> 0
J27: Alapohjan tyyppi | AI27: Ulko-ovet | AK27: =$H$32 -> 1
D28: Alapohja | F28: 149.6 | G28: =CHOOSE(Alapohjan_tyyppiV,0.16,0.17) -> 0.16 | H28: 0.17 | J28: Maata vasten | Q28: LÄMMITYSJÄRJESTELMÄN TIEDOT | X28: Info | AI28: Ikkunat (pohjoinen) | AK28: =H36 -> 1
AI29: Ikkunat (itä) | AK29: =H38 -> 1
D30: Kattoikkunat | F30: 0 | G30: 1 | Q30: Lämmitystapa | U30: Kaukolämpö | AD30: Kuvaaja 1. Energiamuotojen kertoimilla painotettu kokonaisenergiantarve. | AI30: Ikkunat (etelä) | AK30: =H40 -> 1
AI31: Ikkunat (länsi) | AK31: =H42 -> 1
D32: Ulko-ovet | F32: 8.2 | G32: 1 | H32: 1 | Q32: Tilojen lämmönjakojärjestelmä
J33: Ikkunoiden U-arvo: | Q33: Vesikiertoinen lattialämmitys 40/30 °C - maata vasten rajoittuvassa rakenteessa | AI33: Energiatehokkuusluokka
D34: Ikkunapinta-ala | F34: 0.17 | J34: 1 | AI34: valituilla U-arvoilla
Q35: Varaavien tulisijojen määrä | U35: 0 | AI35: ='Laskentatulokset ja kuvaajat'!U21 -> B
D36: Ikkunat pohjoiseen | F36: =Ikkunapinta_ala*Lämmitetty_nettopinta_ala__Anetto * 35/100 -> 8.9012 | G36: 1 | H36: =Ikkunoiden_U_arvo -> 1 | I36: Ikkunan g-arvo | K36: 0.55
Q37: Lämpimän käyttöveden varastointi | U37: 300 l varaaja, 40 mm eristys
D38: Ikkunat itään | F38: =Ikkunapinta_ala*Lämmitetty_nettopinta_ala__Anetto * 5/100 -> 1.2716 | G38: 1 | H38: =Ikkunoiden_U_arvo -> 1 | I38: Ikkunan g-arvo | K38: 0.55
Q39: Lämpimän käyttöveden kierto- ja siirtojohdot | U39: Kiertojohto - suojaputkessa
D40: Ikkunat etelään | F40: =Ikkunapinta_ala*Lämmitetty_nettopinta_ala__Anetto * 45/100 -> 11.4444 | G40: 1 | H40: =Ikkunoiden_U_arvo -> 1 | I40: Ikkunan g-arvo | K40: 0.55
Q41: Käyttöveteen kytkettyjä lämmityslaitteita | U41: Ei
D42: Ikkunat länteen | F42: =Ikkunapinta_ala*Lämmitetty_nettopinta_ala__Anetto * 15/100 -> 3.8148 | G42: 1 | H42: =Ikkunoiden_U_arvo -> 1 | I42: Ikkunan g-arvo | K42: 0.55
Q43: =IF(Lämmitys_tapa="Maalämpöpumppu","Maalämpöpumppu","(Maalämpöpumppu)") -> (Maalämpöpumppu) | T43: Info | U43: =IF(Lämmitys_tapa="Poistoilmalämpöpumppu","Poistoilmalämpöpumppu","(Poistoilmalämpöpumppu)") -> (Poistoilmalämpöpumppu) | X43: Info
D44: RAKENTEIDEN LIITTYMIEN KYLMÄSILTOJEN TIEDOT | K44: Info
F45: Pituus | H45: Lisäkonduktanssi | J45: Huonekorkeus | Q45: Tuotto-osuus | S45: =CHOOSE(LämmitystapaV,0,0,0,0,0,0.9,0)+Delta -> 1e-08 | T45: Info | U45: Tuotto-osuus | W45: =CHOOSE(LämmitystapaV,0,0,0,0,0,0,0.9)+Delta -> 1e-08 | X45: Info
D46: Ulkoseinä - Yläpohja | F46: =Yläpohja*38457/100000 -> 57.531672 | G46: m | H46: =LisaKonduktanssiUS(Ulkoseinän_tyyppiV,Rakennusvaipan_massiivisuusV) -> 0.05 | I46: W/mK | J46: 2.5 | K46: m
Q47: SPF-luku (tilat) | S47: =CHOOSE(LämmitystapaV,0,0,0,0,0,3,0)+Delta -> 1e-08 | T47: Info | U47: SPF-luku | W47: =CHOOSE(LämmitystapaV,0,0,0,0,0,0,2.1)+Delta -> 1e-08 | X47: Info | AD47: Kuvaaja 2. Sisätilojen lämmitystarpeen jakautuminen.
D48: Ulkoseinä - Alapohja | F48: =Alapohja*38457/100000 -> 57.531672 | G48: m | H48: =LisaKonduktanssiUSAP(Ulkoseinän_tyyppiV,Rakennusvaipan_massiivisuusV,Alapohjan_tyyppiV) -> 0.1 | I48: W/mK | AD48: Ostoenergiankulutus valituilla U-arvoilla | AH48: ='Laskentatulokset ja kuvaajat'!E36 -> 161.0363295 | AI48: kWh/m2a | AJ48: =IF(AH50<=AH51,"TÄYTTÄÄ ENERGIA- TEHOKKUUS- VAATIMUKSET",IF(AH50>AH51,"EI TÄYTÄ ENERGIA- TEHOKKUUS- VAATIMUKSIA")) -> TÄYTTÄÄ ENERGIA- TEHOKKUUS- VAATIMUKSET
Q49: SPF-luku (käyttövesi) | S49: =CHOOSE(LämmitystapaV,0,0,0,0,0,2.3,0)+Delta -> 1e-08 | T49: Info | AD49: Ostoenergiankulutus U-arvon vertailuarvoilla | AH49: ='Laskentatulokset ja kuvaajat'!J36 -> 159.7908508 | AI49: kWh/m2a
D50: Ulkoseinä - Välipohja | F50: =Alapohja * (Kerroslukumäärä - 1) * 38457 / 100000 -> 0 | G50: m | H50: =LisaKonduktanssiUSVP(Ulkoseinän_tyyppiV,Rakennusvaipan_massiivisuusV) -> 0.05 | I50: W/mK | AD50: E-luku valituilla U-arvoilla | AH50: ='Laskentatulokset ja kuvaajat'!$F$36 -> 101.5693647 | AI50: kWhE/m2a
Q51: Aurinkolämpö (tukemaan käyttöveden lämmitystä) | U51: Kyllä | AD51: E-luku vaatimustaso | AH51: ='Laskentatulokset ja kuvaajat'!U19 -> 110.24 | AI51: kWhE/m2a
D52: Ulkoseinän ulkonurkka | F52: =Huonekorkeus * 5 * Kerroslukumäärä -> 12.5 | G52: m | H52: =LisaKonduktanssiUN(Ulkoseinän_tyyppiV,Rakennusvaipan_massiivisuusV) -> 0.04 | I52: W/mK | AD52: E-luku U-arvon vertailuarvoilla | AH52: ='Laskentatulokset ja kuvaajat'!K36 -> 100.9466254 | AI52: kWhE/m2a
Q53: Aurinkokeräimen pinta-ala | U53: 5 | Y53: m2
D54: Ulkoseinän sisänurkka | F54: =Huonekorkeus * 1 * Kerroslukumäärä -> 2.5 | G54: m | H54: =LisaKonduktanssiSN(Ulkoseinän_tyyppiV,Rakennusvaipan_massiivisuusV) -> -0.04 | I54: W/mK
Q55: Suuntaus | U55: etelä/kaakko/lounas
D56: Ulkoseinä - Ikkuna | F56: =(Ikkunat_pohjoiseen+Ikkunat_itään+Ikkunat_etelään+Ikkunat_länteen) * 285714 / 100000 -> 72.66278448 | G56: m | H56: 0.04 | I56: W/mK
Q57: Omavaraissähkö | U57: 0 | V57: kWh/a | X57: Info
D58: Ulkoseinä - Ovi | F58: =Ulko_ovet*2408/1000 -> 19.7456 | G58: m | H58: 0.04 | I58: W/mK

Sheet Data (hidden)
C2: E-luku valituilla U-arvoilla | U2: E-luku U-arvon vertailuarvoilla
D3: Tammikuu | E3: Helmikuu | F3: Maaliskuu | G3: Huhtikuu | H3: Toukokuu | I3: Kesäkuu | J3: Heinäkuu | K3: Elokuu | L3: Syyskuu | M3: Lokakuu | N3: Marraskuu | O3: Joulukuu | P3: Koko vuosi | V3: Tammikuu | W3: Helmikuu | X3: Maaliskuu | Y3: Huhtikuu | Z3: Toukokuu | AA3: Kesäkuu | AB3: Heinäkuu | AC3: Elokuu | AD3: Syyskuu | AE3: Lokakuu | AF3: Marraskuu | AG3: Joulukuu | AH3: Koko vuosi | AJ3: Delta | AK3: 1e-08
C4: Qulkoseinä 1 | D4: =U_Ulkoseinät*Ulkoseinät*(TS-TU)*Tuntia/1000 -> 356.8772328 | E4: 329.18256 | F4: 337.0110192 | G4: 228.2148 | H4: 146.3525376 | I4: 93.637224 | J4: 52.881288 | K4: 70.746588 | L4: 144.812664 | M4: 211.525152 | N4: 283.5396 | O4: 331.4370456 | P4: =SUM(D4:O4) -> 2586.217711 | U4: Qulkoseinä 1 | V4: =Mitoitus!$G$24*Ulkoseinät*(TS-Data!D135)*Data!D138/1000 -> 356.8772328 | W4: =Mitoitus!$G$24*Ulkoseinät*(TS-Data!E135)*Data!E138/1000 -> 329.18256 | X4: =Mitoitus!$G$24*Ulkoseinät*(TS-Data!F135)*Data!F138/1000 -> 337.0110192 | Y4: =Mitoitus!$G$24*Ulkoseinät*(TS-Data!G135)*Data!G138/1000 -> 228.2148 | Z4: =Mitoitus!$G$24*Ulkoseinät*(TS-Data!H135)*Data!H138/1000 -> 146.3525376 | AA4: =Mitoitus!$G$24*Ulkoseinät*(TS-Data!I135)*Data!I138/1000 -> 93.637224 | AB4: =Mitoitus!$G$24*Ulkoseinät*(TS-Data!J135)*Data!J138/1000 -> 52.881288 | AC4: =Mitoitus!$G$24*Ulkoseinät*(TS-Data!K135)*Data!K138/1000 -> 70.746588 | AD4: =Mitoitus!$G$24*Ulkoseinät*(TS-Data!L135)*Data!L138/1000 -> 144.812664 | AE4: =Mitoitus!$G$24*Ulkoseinät*(TS-Data!M135)*Data!M138/1000 -> 211.525152 | AF4: =Mitoitus!$G$24*Ulkoseinät*(TS-Data!N135)*Data!N138/1000 -> 283.5396 | AG4: =Mitoitus!$G$24*Ulkoseinät*(TS-Data!O135)*Data!O138/1000 -> 331.4370456 | AH4: =SUM(V4:AG4) -> 2586.217711
C5: Qyläpohja 1 | D5: =U_Yläpohja*Yläpohja*(TS-TU)*Tuntia/1000 -> 250.1298835 | E5: 230.719104 | F5: 236.2059533 | G5: 159.95232 | H5: 102.5762918 | I5: 65.6289216 | J5: 37.0636992 | K5: 49.5852192 | L5: 101.4970176 | M5: 148.2547968 | N5: 198.72864 | O5: 232.299239 | P5: =SUM(D5:O5) -> 1812.641086 | U5: Qyläpohja 1 | V5: =Mitoitus!$G$26*Yläpohja*(TS-Data!D135)*Data!D138/1000 -> 250.1298835 | W5: =Mitoitus!$G$26*Yläpohja*(TS-Data!E135)*Data!E138/1000 -> 230.719104 | X5: =Mitoitus!$G$26*Yläpohja*(TS-Data!F135)*Data!F138/1000 -> 236.2059533 | Y5: =Mitoitus!$G$26*Yläpohja*(TS-Data!G135)*Data!G138/1000 -> 159.95232 | Z5: =Mitoitus!$G$26*Yläpohja*(TS-Data!H135)*Data!H138/1000 -> 102.5762918 | AA5: =Mitoitus!$G$26*Yläpohja*(TS-Data!I135)*Data!I138/1000 -> 65.6289216 | AB5: =Mitoitus!$G$26*Yläpohja*(TS-Data!J135)*Data!J138/1000 -> 37.0636992 | AC5: =Mitoitus!$G$26*Yläpohja*(TS-Data!K135)*Data!K138/1000 -> 49.5852192 | AD5: =Mitoitus!$G$26*Yläpohja*(TS-Data!L135)*Data!L138/1000 -> 101.4970176 | AE5: =Mitoitus!$G$26*Yläpohja*(TS-Data!M135)*Data!M138/1000 -> 148.2547968 | AF5: =Mitoitus!$G$26*Yläpohja*(TS-Data!N135)*Data!N138/1000 -> 198.72864 | AG5: =Mitoitus!$G$26*Yläpohja*(TS-Data!O135)*Data!O138/1000 -> 232.299239 | AH5: =SUM(V5:AG5) -> 1812.641086
C6: Välitulos, ikkunat, ΣUiAi | P6: =Mitoitus!F36*Mitoitus!H36+Mitoitus!F38*Mitoitus!H38+Mitoitus!F40*Mitoitus!H40+Mitoitus!F42*Mitoitus!H42 -> 25.432 | U6: Välitulos, ikkunat, ΣUiAi | AH6: =Mitoitus!F36*Mitoitus!G36+Mitoitus!F38*Mitoitus!G38+Mitoitus!F40*Mitoitus!G40+Mitoitus!F42*Mitoitus!G42 -> 25.432
C7: Qikkuna 1 | D7: =$P$6*(TS-TU)*Tuntia/1000 -> 472.4675578 | E7: 435.802752 | F7: 446.1668006 | G7: 302.13216 | H7: 193.7552179 | I7: 123.9657408 | J7: 70.0092096 | K7: 93.6609696 | L7: 191.7165888 | M7: 280.0368384 | N7: 375.37632 | O7: 438.7874515 | P7: =SUM(D7:O7) -> 3423.877607 | U7: Qikkuna 1 | V7: =$AH$6*(TS-D135)*D138/1000 -> 472.4675578 | W7: 435.802752 | X7: 446.1668006 | Y7: 302.13216 | Z7: 193.7552179 | AA7: 123.9657408 | AB7: 70.0092096 | AC7: 93.6609696 | AD7: 191.7165888 | AE7: 280.0368384 | AF7: 375.37632 | AG7: 438.7874515 | AH7: =SUM(V7:AG7) -> 3423.877607
C8: Qkattoikkuna | D8: =Mitoitus!$H$30*Mitoitus!$F$30*(TS-TU)*Tuntia/1000 -> 0 | E8: =Mitoitus!$H$30*Mitoitus!$F$30*(TS-Data!E135)*Data!E138/1000 -> 0 | F8: =Mitoitus!$H$30*Mitoitus!$F$30*(TS-Data!F135)*Data!F138/1000 -> 0 | G8: =Mitoitus!$H$30*Mitoitus!$F$30*(TS-Data!G135)*Data!G138/1000 -> 0 | H8: =Mitoitus!$H$30*Mitoitus!$F$30*(TS-Data!H135)*Data!H138/1000 -> 0 | I8: =Mitoitus!$H$30*Mitoitus!$F$30*(TS-Data!I135)*Data!I138/1000 -> 0 | J8: =Mitoitus!$H$30*Mitoitus!$F$30*(TS-Data!J135)*Data!J138/1000 -> 0 | K8: =Mitoitus!$H$30*Mitoitus!$F$30*(TS-Data!K135)*Data!K138/1000 -> 0 | L8: =Mitoitus!$H$30*Mitoitus!$F$30*(TS-Data!L135)*Data!L138/1000 -> 0 | M8: =Mitoitus!$H$30*Mitoitus!$F$30*(TS-Data!M135)*Data!M138/1000 -> 0 | N8: =Mitoitus!$H$30*Mitoitus!$F$30*(TS-Data!N135)*Data!N138/1000 -> 0 | O8: =Mitoitus!$H$30*Mitoitus!$F$30*(TS-Data!O135)*Data!O138/1000 -> 0 | P8: =SUM(D8:O8) -> 0 | U8: Qkattoikkuna | V8: =Mitoitus!$G$30*Mitoitus!$F$30*(TS-Data!D135)*Data!D138/1000 -> 0 | W8: =Mitoitus!$G$30*Mitoitus!$F$30*(TS-Data!E135)*Data!E138/1000 -> 0 | X8: =Mitoitus!$G$30*Mitoitus!$F$30*(TS-Data!F135)*Data!F138/1000 -> 0 | Y8: =Mitoitus!$G$30*Mitoitus!$F$30*(TS-Data!G135)*Data!G138/1000 -> 0 | Z8: =Mitoitus!$G$30*Mitoitus!$F$30*(TS-Data!H135)*Data!H138/1000 -> 0 | AA8: =Mitoitus!$G$30*Mitoitus!$F$30*(TS-Data!I135)*Data!I138/1000 -> 0 | AB8: =Mitoitus!$G$30*Mitoitus!$F$30*(TS-Data!J135)*Data!J138/1000 -> 0 | AC8: =Mitoitus!$G$30*Mitoitus!$F$30*(TS-Data!K135)*Data!K138/1000 -> 0 | AD8: =Mitoitus!$G$30*Mitoitus!$F$30*(TS-Data!L135)*Data!L138/1000 -> 0 | AE8: =Mitoitus!$G$30*Mitoitus!$F$30*(TS-Data!M135)*Data!M138/1000 -> 0 | AF8: =Mitoitus!$G$30*Mitoitus!$F$30*(TS-Data!N135)*Data!N138/1000 -> 0 | AG8: =Mitoitus!$G$30*Mitoitus!$F$30*(TS-Data!O135)*Data!O138/1000 -> 0 | AH8: =SUM(V8:AG8) -> 0
C9: Qovi | D9: =Mitoitus!$H$32*Mitoitus!$F$32*(TS-TU)*Tuntia/1000 -> 152.336976 | E9: =Mitoitus!$H$32*Mitoitus!$F$32*(TS-TU)*Tuntia/1000 -> 140.5152 | F9: =Mitoitus!$H$32*Mitoitus!$F$32*(TS-TU)*Tuntia/1000 -> 143.856864 | G9: =Mitoitus!$H$32*Mitoitus!$F$32*(TS-TU)*Tuntia/1000 -> 97.416 | H9: =Mitoitus!$H$32*Mitoitus!$F$32*(TS-TU)*Tuntia/1000 -> 62.472192 | I9: =Mitoitus!$H$32*Mitoitus!$F$32*(TS-TU)*Tuntia/1000 -> 39.97008 | J9: =Mitoitus!$H$32*Mitoitus!$F$32*(TS-TU)*Tuntia/1000 -> 22.57296 | K9: =Mitoitus!$H$32*Mitoitus!$F$32*(TS-TU)*Tuntia/1000 -> 30.19896 | L9: =Mitoitus!$H$32*Mitoitus!$F$32*(TS-TU)*Tuntia/1000 -> 61.81488 | M9: =Mitoitus!$H$32*Mitoitus!$F$32*(TS-TU)*Tuntia/1000 -> 90.29184 | N9: =Mitoitus!$H$32*Mitoitus!$F$32*(TS-TU)*Tuntia/1000 -> 121.032 | O9: =Mitoitus!$H$32*Mitoitus!$F$32*(TS-TU)*Tuntia/1000 -> 141.477552 | P9: =SUM(D9:O9) -> 1103.955504 | U9: Qovi | V9: =Mitoitus!$G$32*Mitoitus!$F$32*(TS-Data!D135)*Data!D138/1000 -> 152.336976 | W9: =Mitoitus!$G$32*Mitoitus!$F$32*(TS-Data!E135)*Data!E138/1000 -> 140.5152 | X9: =Mitoitus!$G$32*Mitoitus!$F$32*(TS-Data!F135)*Data!F138/1000 -> 143.856864 | Y9: =Mitoitus!$G$32*Mitoitus!$F$32*(TS-Data!G135)*Data!G138/1000 -> 97.416 | Z9: =Mitoitus!$G$32*Mitoitus!$F$32*(TS-Data!H135)*Data!H138/1000 -> 62.472192 | AA9: =Mitoitus!$G$32*Mitoitus!$F$32*(TS-Data!I135)*Data!I138/1000 -> 39.97008 | AB9: =Mitoitus!$G$32*Mitoitus!$F$32*(TS-Data!J135)*Data!J138/1000 -> 22.57296 | AC9: =Mitoitus!$G$32*Mitoitus!$F$32*(TS-Data!K135)*Data!K138/1000 -> 30.19896 | AD9: =Mitoitus!$G$32*Mitoitus!$F$32*(TS-Data!L135)*Data!L138/1000 -> 61.81488 | AE9: =Mitoitus!$G$32*Mitoitus!$F$32*(TS-Data!M135)*Data!M138/1000 -> 90.29184 | AF9: =Mitoitus!$G$32*Mitoitus!$F$32*(TS-Data!N135)*Data!N138/1000 -> 121.032 | AG9: =Mitoitus!$G$32*Mitoitus!$F$32*(TS-Data!O135)*Data!O138/1000 -> 141.477552 | AH9: =SUM(V9:AG9) -> 1103.955504
C10: Qalapohja | D10: =Mitoitus!$H$28*Mitoitus!$F$28*(TS-AlapT)*Tuntia/1000 -> 202.4590656 | E10: =Mitoitus!$H$28*Mitoitus!$F$28*(TS-AlapT)*Tuntia/1000 -> 199.9565568 | F10: =Mitoitus!$H$28*Mitoitus!$F$28*(TS-AlapT)*Tuntia/1000 -> 240.3018816 | G10: =Mitoitus!$H$28*Mitoitus!$F$28*(TS-AlapT)*Tuntia/1000 -> 250.861248 | H10: =Mitoitus!$H$28*Mitoitus!$F$28*(TS-AlapT)*Tuntia/1000 -> 259.2232896 | I10: =Mitoitus!$H$28*Mitoitus!$F$28*(TS-AlapT)*Tuntia/1000 -> 232.550208 | J10: =Mitoitus!$H$28*Mitoitus!$F$28*(TS-AlapT)*Tuntia/1000 -> 202.4590656 | K10: =Mitoitus!$H$28*Mitoitus!$F$28*(TS-AlapT)*Tuntia/1000 -> 183.5376576 | L10: =Mitoitus!$H$28*Mitoitus!$F$28*(TS-AlapT)*Tuntia/1000 -> 159.306048 | M10: =Mitoitus!$H$28*Mitoitus!$F$28*(TS-AlapT)*Tuntia/1000 -> 145.6948416 | N10: =Mitoitus!$H$28*Mitoitus!$F$28*(TS-AlapT)*Tuntia/1000 -> 140.995008 | O10: =Mitoitus!$H$28*Mitoitus!$F$28*(TS-AlapT)*Tuntia/1000 -> 164.6162496 | P10: =SUM(D10:O10) -> 2381.96112 | U10: Qalapohja | V10: =Mitoitus!$G$28*Mitoitus!$F$28*(TS-Data!D140)*Data!D138/1000 -> 190.5497088 | W10: =Mitoitus!$G$28*Mitoitus!$F$28*(TS-Data!E140)*Data!E138/1000 -> 188.1944064 | X10: =Mitoitus!$G$28*Mitoitus!$F$28*(TS-Data!F140)*Data!F138/1000 -> 226.1664768 | Y10: =Mitoitus!$G$28*Mitoitus!$F$28*(TS-Data!G140)*Data!G138/1000 -> 236.104704 | Z10: =Mitoitus!$G$28*Mitoitus!$F$28*(TS-Data!H140)*Data!H138/1000 -> 243.9748608 | AA10: =Mitoitus!$G$28*Mitoitus!$F$28*(TS-Data!I140)*Data!I138/1000 -> 218.870784 | AB10: =Mitoitus!$G$28*Mitoitus!$F$28*(TS-Data!J140)*Data!J138/1000 -> 190.5497088 | AC10: =Mitoitus!$G$28*Mitoitus!$F$28*(TS-Data!K140)*Data!K138/1000 -> 172.7413248 | AD10: =Mitoitus!$G$28*Mitoitus!$F$28*(TS-Data!L140)*Data!L138/1000 -> 149.935104 | AE10: =Mitoitus!$G$28*Mitoitus!$F$28*(TS-Data!M140)*Data!M138/1000 -> 137.1245568 | AF10: =Mitoitus!$G$28*Mitoitus!$F$28*(TS-Data!N140)*Data!N138/1000 -> 132.701184 | AG10: =Mitoitus!$G$28*Mitoitus!$F$28*(TS-Data!O140)*Data!O138/1000 -> 154.9329408 | AH10: =SUM(V10:AG10) -> 2241.84576
C11: Välitulos, kylmäsillat, ΣIkΨk | P11: =Mitoitus!F46*Mitoitus!H46+Mitoitus!F48*Mitoitus!H48+Mitoitus!F50*Mitoitus!H50+Mitoitus!F52*Mitoitus!H52+Mitoitus!F54*Mitoitus!H54+Mitoitus!F56*Mitoitus!H56+Mitoitus!F58*Mitoitus!H58 -> 12.72608618 | U11: Välitulos, kylmäsillat, ΣIkΨk | AH11: =P11 -> 12.72608618
C12: Qkylmäsillat | D12: =$P$11*(TS-TU)*Tuntia/1000 -> 236.4211567 | E12: 218.0742128 | F12: 223.2603474 | G12: 151.1859038 | H12: 96.95445112 | I12: 62.03203447 | J12: 35.03237003 | K12: 46.86763018 | L12: 95.93432805 | M12: 140.1294801 | N12: 187.837032 | O12: 219.5677462 | P12: =SUM(D12:O12) -> 1713.296693 | U12: Qkylmäsillat | AH12: =P12 -> 1713.296693
C14: Qjoht | D14: =SUM(D4:D12) -> 1670.691872 | E14: =SUM(E4:E12) -> 1554.250386 | F14: =SUM(F4:F12) -> 1626.802866 | G14: 1189.762432 | H14: 861.3339801 | I14: 617.7842089 | J14: 420.0185924 | K14: 474.5970246 | L14: 755.0815265 | M14: 1015.932949 | N14: 1307.5086 | O14: 1528.185284 | P14: =P4+P5+P7+P8+P9+P10+P12 -> 13021.94972 | U14: Qjoht | AH14: =AH4+AH5+AH7+AH8+AH9+AH10+AH12 -> 12881.83436
C16: Kerroslukumäärän mukaan määrittyvä kerroin x | P16: =CHOOSE(Kerroslukumäärä,35,24,20,20,15,15,15,15,15,15,15,15,15,15,15) -> 35 | U16: Kerroslukumäärän mukaan määrittyvä kerroin x | AH16: 35
C17: qv,vuotoilma | P17: =Mitoitus!$U$25/(3600*Data!$P$16)*(Mitoitus!$F$24+Mitoitus!$F$26+Mitoitus!$F$28+Mitoitus!$F$30+Mitoitus!$F$32+Mitoitus!$F$36+Mitoitus!$F$38+Mitoitus!$F$40+Mitoitus!$F$42) -> 0.01415339683 | U17: qv,vuotoilma | AH17: 0.01415339683
C18: Qvuotoilma | D18: =1.2*1000*$P$17*(TS-D135)*D138/1000 -> 315.5247326 | E18: 291.0391296 | F18: 297.9604803 | G18: 201.7708251 | H18: 129.3942035 | I18: 82.78718098 | J18: 46.75376494 | K18: 62.54895579 | L18: 128.03276 | M18: 187.0150597 | N18: 250.6849646 | O18: 293.0323808 | P18: =SUM(D18:O18) -> 2286.544438 | U18: Qvuotoilma | AH18: 2286.544438
C20: Ulkoilmavirta | P20: =D169*Mitoitus!G16/1000 -> 0.05984 | U20: Ulkoilmavirta
C21: Ulkoilmavirta käyttöajan ulkopuolella | P21: =0.15*Mitoitus!G16/1000 -> 0.02244 | U21: Ulkoilmavirta käyttöajan ulkopuolella
C22: ɸlto | D22: =IV_LTO_Vuosi_HS*IV24h/24*IV7d/7*1.2*1000*UlkoIlmaVirta*(TS-TU)+IV_LTO_Vuosi_HS*IV_Ei_Kaytto_h/24*IV_ei_Kaytto_d/7*1.2*1000*UlkoIlmaVirta_ei_Kaytto*(TS-TU) -> 1093.757914 | E22: =IV_LTO_Vuosi_HS*IV24h/24*IV7d/7*1.2*1000*UlkoIlmaVirta*(TS-TU)+IV_LTO_Vuosi_HS*IV_Ei_Kaytto_h/24*IV_ei_Kaytto_d/7*1.2*1000*UlkoIlmaVirta_ei_Kaytto*(TS-TU) -> 1116.97344 | F22: 1032.87191 | G22: 722.74752 | H22: 448.5414912 | I22: 296.5454976 | J22: 162.070656 | K22: 216.824256 | L22: 458.6161536 | M22: 648.282624 | N22: 897.95904 | O22: 1015.788787
C23: Tlto | D23: =TU+D22/(IV24h/24*IV7d/7*1000*1.2*UlkoIlmaVirta+IV_Ei_Kaytto_h/7*IV_ei_Kaytto_d/24*1000*1.2*UlkoIlmaVirta_ei_Kaytto) -> 11.2617 | E23: 11.055 | F23: 11.8038 | G23: 14.565 | H23: 17.0064 | I23: 18.3597 | J23: 19.557 | K23: 19.0695 | L23: 16.9167 | M23: 15.228 | N23: 13.005 | O23: 11.9559
C24: Qiv negatiivisia ei poistettu | D24: =IV24h/24*IV7d/7*1.2*1000*UlkoIlmaVirta*(Tuloilman_lämpötila_jälkilämmityspatterin_jälkeen-0.5-Tlto)*Tuntia/1000+IV_Ei_Kaytto_h/24*IV_ei_Kaytto_d/7*1.2*1000*UlkoIlmaVirta_ei_Kaytto*(Tuloilman_lämpötila_jälkilämmityspatterin_jälkeen-0.5-Tlto)*Tuntia/1000 -> 333.2821257 | E24: 311.0033203 | F24: 304.3203508 | G24: 151.7446656 | H24: 26.37065503 | I24: -44.44800307 | J24: -109.8955377 | K24: -83.85077606 | L24: 30.15763661 | M24: 121.3819453 | N24: 232.3994112 | O24: 296.1943852
C25: Qiv | D25: =MAX(D24,0) -> 333.2821257 | E25: =MAX(E24,0) -> 311.0033203 | F25: 304.3203508 | G25: 151.7446656 | H25: 26.37065503 | I25: 0 | J25: 0 | K25: 0 | L25: 30.15763661 | M25: 121.3819453 | N25: 232.3994112 | O25: 296.1943852 | P25: =SUM(D25:O25) -> 1806.854496 | U25: Qiv | AH25: 1806.854496
C26: Qiv,tuloilma | D26: =IF(Tuloilman_lämpötila_jälkilämmityspatterin_jälkeen>TU,1.2*1000*UlkoIlmaVirta*(TS-Tuloilman_lämpötila_jälkilämmityspatterin_jälkeen)*Tuntia/1000,IF(Tuloilman_lämpötila_jälkilämmityspatterin_jälkeen<=TU,1.2*1000*UlkoIlmaVirta*(TS-TU)*Tuntia/1000)) -> 160.275456 | E26: 144.764928 | F26: 160.275456 | G26: 155.10528 | H26: 160.275456 | I26: 155.10528 | J26: 160.275456 | K26: 160.275456 | L26: 155.10528 | M26: 160.275456 | N26: 155.10528 | O26: 160.275456 | P26: =SUM(D26:O26) -> 1887.11424 | U26: Qiv,tuloilma | AH26: 1887.11424
C27: Qiv,korvausilma | U27: Qiv,korvausilma
C29: Qtila | D29: =D14+D18+D26+D27 -> 2146.492061 | E29: =E14+E18+E26+E27 -> 1990.054443 | F29: 2085.038802 | G29: 1546.638537 | H29: 1151.00364 | I29: 855.6766699 | J29: 627.0478134 | K29: 697.4214364 | L29: 1038.219566 | M29: 1363.223465 | N29: 1713.298845 | O29: 1981.493121 | P29: =P14+P18+P26+P27 -> 17195.6084 | U29: Qtila | AH29: =AH14+AH18+AH26+AH27 -> 17055.49304
C31: Aaurinkokeräin | P31: =Mitoitus!U53 -> 5 | U31: Aaurinkokeräin | AH31: 5
C32: qaurinkokeräin | P32: 390 | U32: qaurinkokeräin | AH32: 390
C33: kaurinkokeräin | P33: =CHOOSE(Aurinkokeräimen_suuntausV,1,0.8,0.6) -> 1 | U33: kaurinkokeräin | AH33: 1
C34: Qlkv,LTO - 45 % sääntöä ei huomioitu | P34: =P31*P32*P33*P38 -> 1170 | U34: Qlkv,LTO - 40 % sääntöä ei huomioitu | AH34: 1170
C35: Qlkv 45% | P35: =P79*0.45 -> 4322.9196 | U35: Qlkv 40% | AH35: 4322.9196
C36: Qlkv,LTO - maks 45 % | P36: =MIN(P34:P35) -> 1170 | U36: Qlkv,LTO - maks 40 % | AH36: 1170
C37: Qaurinko,lkv | D37: =$P$37*D143 -> 0 | E37: =$P$37*E143 -> 23.4 | F37: 81.9 | G37: 140.4 | H37: 198.9 | I37: 210.6 | J37: 222.3 | K37: 152.1 | L37: 105.3 | M37: 35.1 | N37: 0 | O37: 0 | P37: =CHOOSE(Aurinkolämpö__tukemaan_käyttöveden_lämmitystä_V,0,Data!P36) -> 1170 | U37: Qaurinko,lkv | AH37: 1170
C38: ηaurinkokeräin | P38: 0.6 | U38: ηmuu tuotto (aurinko,lkv) | AH38: 0.6
C40: Waurinko pumput | P40: =CHOOSE(Aurinkolämpö__tukemaan_käyttöveden_lämmitystä_V,0,(50+5*P31)*2000/1000) -> 150 | U40: Waurinko pumput | AH40: 150
C42: Vlkv | D42: =$P$42*D138/8760 -> 7.623452055 | E42: 6.88569863 | F42: 7.623452055 | G42: 7.377534247 | H42: 7.623452055 | I42: 7.377534247 | J42: 7.623452055 | K42: 7.623452055 | L42: 7.377534247 | M42: 7.623452055 | N42: 7.377534247 | O42: 7.623452055 | P42: =G169*Mitoitus!G16/1000 -> 89.76 | U42: Vlkv | AH42: 89.76
C43: Qlkv,netto | D43: =$P$43*D138/8760 -> 356.7123288 | E43: 322.1917808 | F43: 356.7123288 | G43: 345.2054795 | H43: 356.7123288 | I43: 345.2054795 | J43: 356.7123288 | K43: 356.7123288 | L43: 345.2054795 | M43: 356.7123288 | N43: 345.2054795 | O43: 356.7123288 | P43: =IF(AND(Lämmitetty_nettopinta_ala__Anetto>120,C169<4),4200,4.2*1000*P42*50/3600) -> 4200 | U43: Qlkv,netto | AH43: 4200
C44: Qlkv,netto (poislukien aurinkolämpö) | D44: =D43-D37 -> 356.7123288 | E44: =E43-E37 -> 298.7917808 | F44: 274.8123288 | G44: 204.8054795 | H44: 157.8123288 | I44: 134.6054795 | J44: 134.4123288 | K44: 204.6123288 | L44: 239.9054795 | M44: 321.6123288 | N44: 345.2054795 | O44: 356.7123288 | P44: =SUM(D44:O44) -> 3030 | U44: Qlkv,netto (poislukien aurinkolämpö) | AH44: 3030
C46: Wvalaistus = Qvalaistus | D46: =$P$46*D138/8760 -> 66.78144 | E46: 60.31872 | F46: 66.78144 | G46: 64.6272 | H46: 66.78144 | I46: 64.6272 | J46: 66.78144 | K46: 66.78144 | L46: 64.6272 | M46: 66.78144 | N46: 64.6272 | O46: 66.78144 | P46: =J169*K169*H169/24*I169/7*8760/1000*Mitoitus!G16 -> 786.2976 | U46: Wvalaistus = Qvalaistus | AH46: 786.2976
C47: Wkuluttajalaitteet = Qkuluttajalaitteet | D47: =$P$47*D138/8760 -> 200.34432 | E47: 180.95616 | F47: 200.34432 | G47: 193.8816 | H47: 200.34432 | I47: 193.8816 | J47: 200.34432 | K47: 200.34432 | L47: 193.8816 | M47: 200.34432 | N47: 193.8816 | O47: 200.34432 | P47: =L169*M169*Mitoitus!G16*H169/24*I169/7*8760/1000 -> 2358.8928 | U47: Wkuluttajalaitteet = Qkuluttajalaitteet | AH47: 2358.8928
C48: Qhenk | D48: =$P$48*D138/8760 -> 133.56288 | E48: 120.63744 | F48: 133.56288 | G48: 129.2544 | H48: 133.56288 | I48: 129.2544 | J48: 133.56288 | K48: 133.56288 | L48: 129.2544 | M48: 133.56288 | N48: 129.2544 | O48: 133.56288 | P48: =N169*O169*Mitoitus!G16*H169/24*I169/7*8760/1000 -> 1572.5952 | U48: Qhenk | AH48: 1572.5952
C49: Qsäh | D49: =D46+D47 -> 267.12576 | E49: =E46+E47 -> 241.27488 | F49: 267.12576 | G49: 258.5088 | H49: 267.12576 | I49: 258.5088 | J49: 267.12576 | K49: 267.12576 | L49: 258.5088 | M49: 267.12576 | N49: 258.5088 | O49: 267.12576 | P49: =P46+P47 -> 3145.1904 | U49: Qsäh | AH49: 3145.1904
C50: Qaur,pohjonen | D50: =D147*0.75*Mitoitus!$F$36*Mitoitus!$K$36 -> 22.764819 | E50: =E147*0.75*Mitoitus!$F$36*Mitoitus!$K$36 -> 63.5211885 | F50: =F147*0.75*Mitoitus!$F$36*Mitoitus!$K$36 -> 147.9713235 | G50: =G147*0.75*Mitoitus!$F$36*Mitoitus!$K$36 -> 161.1896055 | H50: =H147*0.75*Mitoitus!$F$36*Mitoitus!$K$36 -> 212.226861 | I50: =I147*0.75*Mitoitus!$F$36*Mitoitus!$K$36 -> 259.225197 | J50: =J147*0.75*Mitoitus!$F$36*Mitoitus!$K$36 -> 243.4366935 | K50: =K147*0.75*Mitoitus!$F$36*Mitoitus!$K$36 -> 183.58725 | L50: =L147*0.75*Mitoitus!$F$36*Mitoitus!$K$36 -> 120.8004105 | M50: =M147*0.75*Mitoitus!$F$36*Mitoitus!$K$36 -> 65.7242355 | N50: =N147*0.75*Mitoitus!$F$36*Mitoitus!$K$36 -> 26.436564 | O50: =O147*0.75*Mitoitus!$F$36*Mitoitus!$K$36 -> 15.421329 | P50: =SUM(D50:O50) -> 1522.305477 | U50: Qaur,pohjonen | AH50: 1522.305477
C51: Qaur,itä | D51: =D149*0.75*Mitoitus!$F$38*Mitoitus!$K$38 -> 1.993233 | E51: =E149*0.75*Mitoitus!$F$38*Mitoitus!$K$38 -> 8.182746 | F51: =F149*0.75*Mitoitus!$F$38*Mitoitus!$K$38 -> 25.4399475 | G51: =G149*0.75*Mitoitus!$F$38*Mitoitus!$K$38 -> 41.9103465 | H51: =H149*0.75*Mitoitus!$F$38*Mitoitus!$K$38 -> 59.167548 | I51: =I149*0.75*Mitoitus!$F$38*Mitoitus!$K$38 -> 57.489036 | J51: =J149*0.75*Mitoitus!$F$38*Mitoitus!$K$38 -> 62.314758 | K51: =K149*0.75*Mitoitus!$F$38*Mitoitus!$K$38 -> 48.152313 | L51: =L149*0.75*Mitoitus!$F$38*Mitoitus!$K$38 -> 29.6362275 | M51: =M149*0.75*Mitoitus!$F$38*Mitoitus!$K$38 -> 9.1793625 | N51: =N149*0.75*Mitoitus!$F$38*Mitoitus!$K$38 -> 2.6751285 | O51: =O149*0.75*Mitoitus!$F$38*Mitoitus!$K$38 -> 1.363791 | P51: 347.5044375 | U51: Qaur,itä | AH51: 347.5044375
C52: Qaur,etelä | D52: =Data!D151*0.75*Mitoitus!$F$40*Mitoitus!$K$40 -> 60.8985135 | E52: =Data!E151*0.75*Mitoitus!$F$40*Mitoitus!$K$40 -> 195.441741 | F52: =Data!F151*0.75*Mitoitus!$F$40*Mitoitus!$K$40 -> 422.5129425 | G52: =Data!G151*0.75*Mitoitus!$F$40*Mitoitus!$K$40 -> 506.5434495 | H52: =Data!H151*0.75*Mitoitus!$F$40*Mitoitus!$K$40 -> 547.61454 | I52: =Data!I151*0.75*Mitoitus!$F$40*Mitoitus!$K$40 -> 479.634804 | J52: =Data!J151*0.75*Mitoitus!$F$40*Mitoitus!$K$40 -> 545.2541325 | K52: =Data!K151*0.75*Mitoitus!$F$40*Mitoitus!$K$40 -> 473.969826 | L52: =Data!L151*0.75*Mitoitus!$F$40*Mitoitus!$K$40 -> 474.4419075 | M52: =Data!M151*0.75*Mitoitus!$F$40*Mitoitus!$K$40 -> 174.670155 | N52: =Data!N151*0.75*Mitoitus!$F$40*Mitoitus!$K$40 -> 79.309692 | O52: =Data!O151*0.75*Mitoitus!$F$40*Mitoitus!$K$40 -> 55.705617 | P52: 4015.997321 | U52: Qaur,etelä | AH52: 4015.997321
C53: Qaur,länsi | D53: =D153*0.75*Mitoitus!$F$42*Mitoitus!$K$42 -> 5.979699 | E53: =E153*0.75*Mitoitus!$F$42*Mitoitus!$K$42 -> 24.548238 | F53: =F153*0.75*Mitoitus!$F$42*Mitoitus!$K$42 -> 68.7665385 | G53: =G153*0.75*Mitoitus!$F$42*Mitoitus!$K$42 -> 126.832563 | H53: =H153*0.75*Mitoitus!$F$42*Mitoitus!$K$42 -> 164.4417225 | I53: =I153*0.75*Mitoitus!$F$42*Mitoitus!$K$42 -> 174.984876 | J53: =J153*0.75*Mitoitus!$F$42*Mitoitus!$K$42 -> 193.0813335 | K53: =K153*0.75*Mitoitus!$F$42*Mitoitus!$K$42 -> 124.000074 | L53: =L153*0.75*Mitoitus!$F$42*Mitoitus!$K$42 -> 93.3147765 | M53: =M153*0.75*Mitoitus!$F$42*Mitoitus!$K$42 -> 29.583774 | N53: =N153*0.75*Mitoitus!$F$42*Mitoitus!$K$42 -> 8.0253855 | O53: =O153*0.75*Mitoitus!$F$42*Mitoitus!$K$42 -> 4.5634545 | P53: 1018.122435 | U53: Qaur,länsi | AH53: 1018.122435
C54: Qaur | D54: =D53+D52+D51+D50 -> 91.6362645 | E54: =E53+E52+E51+E50 -> 291.6939135 | F54: 664.690752 | G54: 836.4759645 | H54: 983.4506715 | I54: 971.333913 | J54: 1044.086918 | K54: 829.709463 | L54: 718.193322 | M54: 279.157527 | N54: 116.44677 | O54: 77.0541915 | P54: 6903.92967 | U54: Qaur | AH54: 6903.92967
C55: Qlvk,varastointi, kuorma | D55: =$P$72*0.5*D138/8760 -> 55.20547945 | E55: 49.8630137 | F55: 55.20547945 | G55: 53.42465753 | H55: 55.20547945 | I55: 53.42465753 | J55: 55.20547945 | K55: 55.20547945 | L55: 53.42465753 | M55: 55.20547945 | N55: 53.42465753 | O55: 55.20547945 | P55: 650 | U55: Qlvk,varastointi, kuorma | AH55: 650
C56: Qlvk,kierto, kuorma | D56: =$P$76*0.5*D138/8760 -> 166.9536 | E56: 150.7968 | F56: 166.9536 | G56: 161.568 | H56: 166.9536 | I56: 161.568 | J56: 166.9536 | K56: 166.9536 | L56: 161.568 | M56: 166.9536 | N56: 161.568 | O56: 166.9536 | P56: 0 | U56: Qlvk,kierto, kuorma | AH56: 0
C57: Qlämpökuorma | D57: =D48+D49+D54+D55+D56 -> 714.483984 | E57: =E48+E49+E54+E55+E56 -> 854.2660472 | F57: 1287.538471 | G57: 1439.231822 | H57: 1606.298391 | I57: 1574.089771 | J57: 1666.934637 | K57: 1452.557182 | L57: 1320.94918 | M57: 902.0052465 | N57: 719.2026275 | O57: 699.901911 | P57: 14237.45927 | U57: Qlämpökuorma | AH57: 14237.45927
C58: Htila | D58: =D29/(($P$133-D135)*D138)*1000 -> 115.5414487 | E58: 116.1329624 | F58: 118.8495127 | G58: 130.188429 | H58: 151.0788967 | I58: 175.545025 | J58: 227.7854597 | K58: 189.3726068 | L58: 137.724128 | M58: 123.8033516 | N58: 116.0771575 | O58: 114.8467963 | P58: 1716.945774 | U58: Htila | AH58: 1716.945774
C59: Crak | P59: =CHOOSE(RakennusluokkaV,CHOOSE(Rakennusvaipan_massiivisuusV,Lämmitetty_nettopinta_ala__Anetto*40,Lämmitetty_nettopinta_ala__Anetto*70,Lämmitetty_nettopinta_ala__Anetto*110,Lämmitetty_nettopinta_ala__Anetto*200),CHOOSE(Rakennusvaipan_massiivisuusV,Lämmitetty_nettopinta_ala__Anetto*40,Lämmitetty_nettopinta_ala__Anetto*70,Lämmitetty_nettopinta_ala__Anetto*110,Lämmitetty_nettopinta_ala__Anetto*200),CHOOSE(Rakennusvaipan_massiivisuusV,Lämmitetty_nettopinta_ala__Anetto*40,Lämmitetty_nettopinta_ala__Anetto*160,Lämmitetty_nettopinta_ala__Anetto*160,Lämmitetty_nettopinta_ala__Anetto*220),CHOOSE(Rakennusvaipan_massiivisuusV,Lämmitetty_nettopinta_ala__Anetto*70,Lämmitetty_nettopinta_ala__Anetto*110,Lämmitetty_nettopinta_ala__Anetto*110,Lämmitetty_nettopinta_ala__Anetto*160),CHOOSE(Rakennusvaipan_massiivisuusV,Lämmitetty_nettopinta_ala__Anetto*40,Lämmitetty_nettopinta_ala__Anetto*70,Lämmitetty_nettopinta_ala__Anetto*160,Lämmitetty_nettopinta_ala__Anetto*220),CHOOSE(Rakennusvaipan_massiivisuusV,Lämmitetty_nettopinta_ala__Anetto*40,Lämmitetty_nettopinta_ala__Anetto*70,Lämmitetty_nettopinta_ala__Anetto*160,Lämmitetty_nettopinta_ala__Anetto*220),CHOOSE(Rakennusvaipan_massiivisuusV,Lämmitetty_nettopinta_ala__Anetto*40,Lämmitetty_nettopinta_ala__Anetto*70,Lämmitetty_nettopinta_ala__Anetto*160,Lämmitetty_nettopinta_ala__Anetto*220),CHOOSE(Rakennusvaipan_massiivisuusV,Lämmitetty_nettopinta_ala__Anetto*40,Lämmitetty_nettopinta_ala__Anetto*70,Lämmitetty_nettopinta_ala__Anetto*160,Lämmitetty_nettopinta_ala__Anetto*220),CHOOSE(Rakennusvaipan_massiivisuusV,Lämmitetty_nettopinta_ala__Anetto*40,Lämmitetty_nettopinta_ala__Anetto*70,Lämmitetty_nettopinta_ala__Anetto*160,Lämmitetty_nettopinta_ala__Anetto*220),CHOOSE(Rakennusvaipan_massiivisuusV,Lämmitetty_nettopinta_ala__Anetto*40,Lämmitetty_nettopinta_ala__Anetto*70,Lämmitetty_nettopinta_ala__Anetto*160,Lämmitetty_nettopinta_ala__Anetto*220),CHOOSE(Rakennusvaipan_massiivisuusV,Lämmitetty_nettopinta_ala__Anetto*40,Lämmitetty_nettopinta_ala__Anetto*70,Lämmitetty_nettopinta_ala__Anetto*160,Lämmitetty_nettopinta_ala__Anetto*220)) -> 5984 | U59: Crak | AH59: 5984
C60: τ | D60: =$P$59/D58 -> 51.79093794 | E60: =$P$59/E58 -> 51.52714507 | F60: 50.34938609 | G60: 45.96414631 | H60: 39.60844386 | I60: 34.0881207 | J60: 26.27033354 | K60: 31.59907919 | L60: 43.4491769 | M60: 48.33471731 | N60: 51.5519171 | O60: 52.10419615 | U60: τ
C61: у | D61: =D57/D29 -> 0.3328612283 | E61: =E57/E29 -> 0.4292676766 | F61: 0.6175129546 | G61: 0.9305547403 | H61: 1.395563259 | I61: 1.839584771 | J61: 2.658385216 | K61: 2.082753851 | L61: 1.2723216 | M61: 0.6616708631 | N61: 0.4197765205 | O61: 0.3532194503 | U61: у
C62: a | D62: =1+(D60/15) -> 4.452729196 | E62: =1+(E60/15) -> 4.435143005 | F62: 4.356625739 | G62: 4.064276421 | H62: 3.640562924 | I62: 3.27254138 | J62: 2.751355569 | K62: 3.10660528 | L62: 3.896611793 | M62: 4.222314488 | N62: 4.436794473 | O62: 4.473613077 | U62: a
C63: ηlämpö | D63: =(1-D61^D62)/(1-D61^(D62+1)) -> 0.9950104261 | E63: =(1-E61^E62)/(1-E61^(E62+1)) -> 0.986450194 | F63: 0.9493378079 | G63: 0.8303108393 | H63: 0.6398653359 | I63: 0.5071518332 | J63: 0.3598223483 | K63: 0.4532641947 | L63: 0.6909288174 | M63: 0.9330987384 | N63: 0.98755783 | O63: 0.9938291565 | U63: ηlämpö
C64: Qsis.lämpö | D64: =D63*D57 -> 710.9190133 | E64: 842.690908 | F64: 1222.30895 | G64: 1195.009782 | H64: 1027.814659 | I64: 798.3025127 | J64: 599.8003356 | K64: 658.3921615 | L64: 912.6818545 | M64: 841.6599575 | N64: 710.2541862 | O64: 695.5829258 | P64: =SUM(D64:O64) -> 10215.41725 | U64: Qsis.lämpö | AH64: 10215.41725
C66: Qlämmitys,tilat,netto | D66: =D29-D64 -> 1435.573048 | E66: 1147.363535 | F66: 862.7298524 | G66: 351.6287549 | H66: 123.1889801 | I66: 57.37415718 | J66: 27.24747777 | K66: 39.02927487 | L66: 125.5377119 | M66: 521.5635072 | N66: 1003.044658 | O66: 1285.910195 | P66: =SUM(D66:O66) -> 6980.191152 | U66: Qlämmitys,tilat,netto | AH66: =AH29-AH64 -> 6840.075792
C68: ηtilat | P68: =CHOOSE(Tilojen_lämmönjakojärjestelmäV,0.9,0.85,0.85,0.9,0.8,0.8,0.8,0.8,0.75,0.85,0.85,0.9,0.8,0.9,0.95,0.85,0.8,0.85,0.8) -> 0.8 | U68: ηtilat | AH68: 0.8
C69: Qlämmitys,tilat | D69: =D66/$P$68 -> 1794.46631 | E69: =E66/$P$68 -> 1434.204419 | F69: 1078.412315 | G69: 439.5359436 | H69: 153.9862252 | I69: 71.71769648 | J69: 34.05934721 | K69: 48.78659359 | L69: 156.9221399 | M69: 651.954384 | N69: 1253.805823 | O69: 1607.387744 | P69: =SUM(D69:O69) -> 8725.238941 | U69: Qlämmitys,tilat | AH69: =AH66/AH68 -> 8550.094741
C70: Qlämmitys,tilat (Varaavat takat poisluettu) | P70: =P69-P89 -> 8725.238941 | U70: Qlämmitys,tilat (Varaavat takat poisluettu) | AH70: =AH69-AH89 -> 8550.094741
C72: Qlvk,varastointi | D72: =$P$72*D138/8760 -> 110.4109589 | E72: =$P$72*E138/8760 -> 99.7260274 | F72: 110.4109589 | G72: 106.8493151 | H72: 110.4109589 | I72: 106.8493151 | J72: 110.4109589 | K72: 110.4109589 | L72: 106.8493151 | M72: 110.4109589 | N72: 106.8493151 | O72: 110.4109589 | P72: =CHOOSE(Lämpimän_käyttöveden_varastointiV,0,440,220,640,320,830,420,1000,500,1300,650,1700,850,2100,1100,3000,1500,4000,2000) -> 1300 | U72: Qlvk,varastointi | AH72: 1300
C73: ɸlvk,kierto,omin | P73: =CHOOSE(Lämpimän_käyttöveden_kierto__ja_siirtojohdotV,0,0,0,0,40,10,6,15,8,5) -> 15 | U73: ɸlvk,kierto,omin | AH73: 15
C74: Llkv | P74: =D185*Mitoitus!G16 -> 29.92 | U74: Llkv | AH74: 29.92
C75: ɸlvk,kierto,omin + lämmityslaitteita | P75: =CHOOSE(käyttöveteen_kytkettyjä_lämmityslaitteitaV,0,40) -> 0 | U75: ɸlvk,kierto,omin + lämmityslaitteita | AH75: 0
C76: Qlvk,kierto | D76: =$P$76*D138/8760 -> 333.9072 | E76: =$P$76*E138/8760 -> 301.5936 | F76: 333.9072 | G76: 323.136 | H76: 333.9072 | I76: 323.136 | J76: 333.9072 | K76: 333.9072 | L76: 323.136 | M76: 333.9072 | N76: 323.136 | O76: 333.9072 | P76: =((P73+P75)*P74)*8760/1000 -> 3931.488 | U76: Qlvk,kierto | AH76: 3931.488
C77: Kierto | P77: =AND(Lämpimän_käyttöveden_kierto__ja_siirtojohdotV>6,Lämpimän_käyttöveden_kierto__ja_siirtojohdotV<11) -> TRUE | AH77: =P77 -> TRUE
C78: ηlkv,siirto | P78: =IF(Kierto,$E$185,CHOOSE(Lämpimän_käyttöveden_kierto__ja_siirtojohdotV,$F$185,$G$185,$H$185,$I$185,$J$185,$K$185,$L$185,$M$185,$N$185,$O$185)) -> 0.96 | U78: ηlkv,siirto | AH78: =P78 -> 0.96
C79: Qlämmitys,lkv | D79: =D43/$P$78+D72+D76 -> 815.8935014 | E79: 736.9360658 | F79: 815.8935014 | G79: 789.5743562 | H79: 815.8935014 | I79: 789.5743562 | J79: 815.8935014 | K79: 815.8935014 | L79: 789.5743562 | M79: 815.8935014 | N79: 789.5743562 | O79: 815.8935014 | P79: =SUM(D79:O79) -> 9606.488 | U79: Qlämmitys,lkv | AH79: 9606.488
C80: Qlämmitys,lkv (poislukien aurinkolämpö) | D80: =D44/$P$78+D72+D76 -> 815.8935014 | E80: =E44/$P$78+E72+E76 -> 712.5610658 | F80: 730.5810014 | G80: 643.3243562 | H80: 608.7060014 | I80: 570.1993562 | J80: 584.3310014 | K80: 657.4560014 | L80: 679.8868562 | M80: 779.3310014 | N80: 789.5743562 | O80: 815.8935014 | P80: =SUM(D80:O80) -> 8387.738 | U80: Qlämmitys,lkv (poislukien aurinkolämpö) | AH80: 8387.738
C82: ηmuu tuotto (tulisija) | P82: 0.6 | U82: ηmuu tuotto (tulisija) | AH82: 0.6
C83: Qmuu tuotto (tulisija) | P83: =Mitoitus!U35*2000 -> 0 | U83: Qmuu tuotto (tulisija) | AH83: 0
C85: Muu kuin pieni rakennus | P85: =IF(RakennusluokkaV=1,FALSE,TRUE) -> FALSE
C86: ηtuotto | P86: =IF(AND(P85=FALSE,Lämmitys_tapa=A!I3),Data!D197,IF(AND(P85=FALSE,Lämmitys_tapa=A!I4),D198,IF(AND(P85=FALSE,Lämmitys_tapa=A!I5),D194,IF(AND(P85=FALSE,Lämmitys_tapa=A!I6),D195,IF(AND(P85=FALSE,Lämmitys_tapa=A!I7),D192,IF(AND(P85=FALSE,Lämmitys_tapa=A!I8),D196,IF(AND(P85=FALSE,Lämmitys_tapa=A!I9),D196,IF(AND(P85=TRUE,Lämmitys_tapa=A!I3),Data!F197,IF(AND(P85=TRUE,Lämmitys_tapa=A!I4),F198,IF(AND(P85=TRUE,Lämmitys_tapa=A!I5),F194,IF(AND(P85=TRUE,Lämmitys_tapa=A!I6),F195,IF(AND(P85=TRUE,Lämmitys_tapa=A!I7),F192,IF(AND(P85=TRUE,Lämmitys_tapa=A!I8),F196,IF(AND(P85=TRUE,Lämmitys_tapa=A!I9),F196)))))))))))))) -> 0.94 | U86: ηtuotto | AH86: 0.94
C87: Qlämmitys | P87: =(P69+P25+P79-P37-P83)/P86 -> 20179.34195 | U87: Qlämmitys | AH87: 20179.34195
C89: Qtulisija | P89: =Mitoitus!U35*2000 -> 0 | U89: Qtulisija | AH89: 0
C91: etilat | P91: =IF(Mitoitus!Q33=A!J3,2,IF(Mitoitus!Q33=A!J4,2,IF(Mitoitus!Q33=A!J5,2,IF(Mitoitus!Q33=A!J6,2,IF(Mitoitus!Q33=A!J7,2,IF(Mitoitus!Q33=A!J8,2,IF(Mitoitus!Q33=A!J9,2.5,IF(Mitoitus!Q33=A!J10,2.5,IF(Mitoitus!Q33=A!J11,2.5,IF(Mitoitus!Q33=A!J12,2.5,IF(Mitoitus!Q33=A!J13,0.5,IF(Mitoitus!Q33=A!J14,0.5,IF(Mitoitus!Q33=A!J15,0.5,IF(Mitoitus!Q33=A!J16,0.5,IF(Mitoitus!Q33=A!J17,0.5,IF(Mitoitus!Q33=A!J18,0.5,IF(Mitoitus!Q33=A!J19,0.5,IF(Mitoitus!Q33=A!J20,0.5,IF(Mitoitus!Q33=A!J21,0.5))))))))))))))))))) -> 2.5 | U91: etilat | AH91: 2.5
C92: Wtilat | P92: =P91*Mitoitus!G16 -> 374 | U92: Wtilat | AH92: 374
C93: Plkv,pumppu | P93: =(P76/8760)/(3*4.2)*200 -> 7.123809524 | U93: Plkv,pumppu | AH93: 7.123809524
C94: Wlkv,pumppu | P94: =P93*8760/1000 -> 62.40457143 | U94: Wlkv,pumppu | AH94: 62.40457143
C95: Wvalaistus | P95: =P46 -> 786.2976 | U95: Wvalaistus | AH95: 786.2976
C96: Wkuluttajalaitteet | P96: =P47 -> 2358.8928 | U96: Wkuluttajalaitteet | AH96: 2358.8928
C97: Wilmanvaihto | P97: =Mitoitus!$U$19*Data!$P$20*(Data!$P$169/24)*(Data!$Q$169/7)*8760+Mitoitus!$U$19*Data!$P$21*Data!$R$169/24*Data!$S$169/7*8760 -> 917.3472 | U97: Wilmanvaihto | AH97: 917.3472
C99: etuotto | P99: =IF(AND(P85=FALSE,Lämmitys_tapa=A!I3),Data!E197,IF(AND(P85=FALSE,Lämmitys_tapa=A!I4),E198,IF(AND(P85=FALSE,Lämmitys_tapa=A!I5),E194,IF(AND(P85=FALSE,Lämmitys_tapa=A!I6),E195,IF(AND(P85=FALSE,Lämmitys_tapa=A!I7),E192,IF(AND(P85=FALSE,Lämmitys_tapa=A!I8),E196,IF(AND(P85=FALSE,Lämmitys_tapa=A!I9),E196,IF(AND(P85=TRUE,Lämmitys_tapa=A!I3),Data!G197,IF(AND(P85=TRUE,Lämmitys_tapa=A!I4),G198,IF(AND(P85=TRUE,Lämmitys_tapa=A!I5),G194,IF(AND(P85=TRUE,Lämmitys_tapa=A!I6),G195,IF(AND(P85=TRUE,Lämmitys_tapa=A!I7),G192,IF(AND(P85=TRUE,Lämmitys_tapa=A!I8),G196,IF(AND(P85=TRUE,Lämmitys_tapa=A!I9),G196)))))))))))))) -> 0.6 | U99: etuotto | AH99: 0.6
C100: Wtuotto,apu | P100: =P99*Mitoitus!G16 -> 89.76 | U100: Wtuotto,apu | AH100: 89.76
C102: Qlisälämmitys,tilat MLP | P102: =(1-Mitoitus!S45)*Data!P70 -> 8725.238853 | U102: Qlisälämmitys,tilat MLP | AH102: =(1-Mitoitus!S45)*Data!AH70 -> 8550.094655
C103: QLP,lämmitys,tilat MLP | P103: =P70-P102 -> 8.725239059e-05 | U103: QLP,lämmitys,tilat MLP | AH103: =AH70-AH102 -> 8.550094753e-05
C104: Qlisälämmitys,lkv MLP | P104: =(1-Mitoitus!S45)*Data!P80 -> 8387.737916 | U104: Qlisälämmitys,lkv MLP | AH104: =(1-Mitoitus!S45)*Data!AH80 -> 8387.737916
C105: QLP,lämmitys,lkv MLP | P105: =P80-P104 -> 8.387738126e-05 | U105: QLP,lämmitys,lkv MLP | AH105: =AH80-AH104 -> 8.387738126e-05
C106: WLP,lämmitys MLP | P106: =P103/(SPF_luku__tilat)+Data!P105/(SPF_luku__käyttövesi)+Data!P102+Data!P104 -> 34225.95395 | U106: WLP,lämmitys MLP | AH106: =AH103/Mitoitus!S47+Data!AH105/Mitoitus!S49+Data!AH102+Data!AH104 -> 33875.66545
C109: Qlämmitys,tilat (kWh/m2vuosi) | P109: =P69/Mitoitus!G16 -> 58.32378971 | U109: Qlämmitys,tilat (kWh/m2vuosi) | AH109: =AH69/Mitoitus!G16 -> 57.15303971
C110: Qlisälämmitys,tilat PILP | P110: =(1-Mitoitus!W45)*Data!P70 -> 8725.238853 | U110: Qlisälämmitys,tilat PILP | AH110: =(1-Mitoitus!W45)*Data!AH70 -> 8550.094655
C111: QLP,lämmitys,tilat PILP | P111: =P70-P110 -> 8.725239059e-05 | U111: QLP,lämmitys,tilat PILP | AH111: =AH70-AH110 -> 8.550094753e-05
C112: Qlisälämmitys,lkv PILP | P112: =(1-Mitoitus!W45)*Data!P80 -> 8387.737916 | U112: Qlisälämmitys,lkv PILP | AH112: =(1-Mitoitus!W45)*Data!AH80 -> 8387.737916
C113: QLP,lämmitys,lkv PILP | P113: =P80-P112 -> 8.387738126e-05 | U113: QLP,lämmitys,lkv PILP | AH113: =AH80-AH112 -> 8.387738126e-05
C114: WLP,lämmitys PILP | P114: =P111/(SPF_luku)+Data!P113/(SPF_luku)+Data!P112+Data!P110 -> 34225.95395 | U114: WLP,lämmitys PILP | AH114: =AH111/Mitoitus!W47+Data!AH113/Mitoitus!W47+Data!AH112+Data!AH110 -> 33875.66545
C117: Waurinko,pumput | U117: Waurinko,pumput
C119: Fkäyttö | U119: Fkäyttö
C120: Kmaks | U120: Kmaks
C121: F2 | U121: F2
C122: F1 | U122: F1
C123: Fasento | U123: Fasento
C124: Gaur | U124: Gaur
C125: Pmaks | U125: Pmaks
C126: Wpv | U126: Wpv
C128: Wlämmitys | P128: =P92+P100+P94+P40+P106 -> 34902.11853 | U128: Wlämmitys | AH128: =AH92+AH100+AH94+AH40+AH106 -> 34551.83002
C133: Sisälämpötila, Ts , °C (Lämmitysraja) | O133: TS | P133: =CHOOSE(RakennusluokkaV,21,21,21,21,21,21,18,21,21,18,22) -> 21
C134: Säävyöhyke I ja II
C135: Ulkoilman keskilämpötila Tu , °C | D135: -3.97 | E135: -4.5 | F135: -2.58 | G135: 4.5 | H135: 10.76 | I135: 14.23 | J135: 17.3 | K135: 16.05 | L135: 10.53 | M135: 6.2 | N135: 0.5 | O135: -2.19 | P135: 5.3
C136: Auringon kokonaissäteilyenergia vaakatasolla Gsäteily, vaakapinta , kWh/m2 | D136: 6.2 | E136: 22.4 | F136: 64.3 | G136: 119.9 | H136: 165.5 | I136: 168.6 | J136: 180.9 | K136: 126.7 | L136: 82 | M136: 26.2 | N136: 8.1 | O136: 4.4
C137: Normitukseen käytettävä lämmitystarveluku, S17, Kd | D137: 650 | E137: 602 | F137: 607 | G137: 354 | H137: 117 | I137: 9 | J137: 0 | K137: 31 | L137: 161 | M137: 331 | N137: 495 | O137: 595
C138: Pituus, h | D138: 744 | E138: 672 | F138: 744 | G138: 720 | H138: 744 | I138: 720 | J138: 744 | K138: 744 | L138: 720 | M138: 744 | N138: 720 | O138: 744
C140: Alapohjan alapuolisen maan kuukausittainen keskilämpötila, °C | D140: =5+P135 -> 10.3 | E140: =P135+5-1 -> 9.3 | F140: =P135+5-2 -> 8.3 | G140: =P135+5-3 -> 7.3 | H140: =P135+5-3 -> 7.3 | I140: =P135+5-2 -> 8.3 | J140: =P135+5 -> 10.3 | K140: =P135+5+1 -> 11.3 | L140: =P135+5+2 -> 12.3 | M140: =P135+5+3 -> 13.3 | N140: =P135+5+3 -> 13.3 | O140: =P135+5+2 -> 12.3
C143: Auringon säteilyn kuukausittaisten energiaosuuksien suhde. | D143: 0 | E143: 0.02 | F143: 0.07 | G143: 0.12 | H143: 0.17 | I143: 0.18 | J143: 0.19 | K143: 0.13 | L143: 0.09 | M143: 0.03 | N143: 0 | O143: 0 | P143: =SUM(D143:O143) -> 1
C144: Auringon kokonaissäteilyenergia vaakatasolle, Gsäteily, vaakapinta , kWh/m2 | D144: 6.2 | E144: 22.4 | F144: 64.3 | G144: 119.9 | H144: 165.5 | I144: 168.6 | J144: 180.9 | K144: 126.7 | L144: 82 | M144: 26.2 | N144: 8.1 | O144: 4.4 | P144: 975.2
C146: Auringon kokonaissäteilyenergia pystypinnoille eri ilmansuuntiin, Gsäteily, pystypinta , kWh/m2
C147: Pohjoiseen | D147: 6.2 | E147: 17.3 | F147: 40.3 | G147: 43.9 | H147: 57.8 | I147: 70.6 | J147: 66.3 | K147: 50 | L147: 32.9 | M147: 17.9 | N147: 7.2 | O147: 4.2 | P147: =SUM(D147:O147) -> 414.6
C148: Koilliseen | D148: 4.7 | E148: 13.8 | F148: 38.1 | G148: 56.3 | H148: 82.1 | I148: 87.9 | J148: 91.1 | K148: 66.4 | L148: 37.5 | M148: 15.6 | N148: 5.5 | O148: 3.2 | P148: 502.2
C149: Itään | D149: 3.8 | E149: 15.6 | F149: 48.5 | G149: 79.9 | H149: 112.8 | I149: 109.6 | J149: 118.8 | K149: 91.8 | L149: 56.5 | M149: 17.5 | N149: 5.1 | O149: 2.6 | P149: 662.5
C150: Kaakkoon | D150: 9.5 | E150: 31 | F150: 75.1 | G150: 101.1 | H150: 123.3 | I150: 109.9 | J150: 123.1 | K150: 106 | L150: 83.9 | M150: 28.3 | N150: 12.3 | O150: 8.4 | P150: 811.9
C151: Etelään | D151: 12.9 | E151: 41.4 | F151: 89.5 | G151: 107.3 | H151: 116 | I151: 101.6 | J151: 115.5 | K151: 100.4 | L151: 100.5 | M151: 37 | N151: 16.8 | O151: 11.8 | P151: 850.7
C152: Lounaaseen | D152: 9.5 | E152: 30.9 | F152: 69.4 | G152: 101.6 | H152: 117.5 | I152: 110.9 | J152: 128.6 | K152: 92.8 | L152: 87.3 | M152: 30 | N152: 12.3 | O152: 8.8 | P152: 799.6
C153: Länteen | D153: 3.8 | E153: 15.6 | F153: 43.7 | G153: 80.6 | H153: 104.5 | I153: 111.2 | J153: 122.7 | K153: 78.8 | L153: 59.3 | M153: 18.8 | N153: 5.1 | O153: 2.9 | P153: 647
C154: Luoteeseen | D154: 4.7 | E154: 14 | F154: 36.9 | G154: 56.8 | H154: 76.3 | I154: 89.1 | J154: 91.2 | K154: 61.1 | L154: 38.1 | M154: 15.7 | N154: 5.6 | O154: 3.2 | P154: 492.7
D156: Ulko- ilmavirta, dm3/(sm2) | E156: Lämmitys- raja | G156: LKV:n ominais- kulutus | H156: h/24h | I156: d/7d | J156: Valaistus, käyttöaste | K156: Valais- tusteho, W/m2 | L156: Kuluttaja- laitteet, käyttöaste | M156: Kuluttaja- laitteet, teho W/m2 | N156: Ihmiset, käyttö- aste | O156: Ihmiset, teho | P156: IV h/24h | Q156: IV d/7d | R156: Käyttöajan ulkopuolinen IV h/24h | S156: Käyttöajan ulkopuolinen IV d/7d
B157: Luokka 1 a) | C157: =A!A3 -> Erillinen pientalo, 50 … 150 m2 | D157: 0.4 | E157: 21 | G157: 600 | H157: 24 | I157: 7 | J157: 0.1 | K157: 6 | L157: 0.6 | M157: 3 | N157: 0.6 | O157: 2 | P157: 24 | Q157: 7 | R157: =24-P157 -> 0 | S157: =7-Q157 -> 0
B158: Luokka 1 b) | C158: =A!A4 -> Erillinen pientalo, yli 150 … 600 m2 | D158: 0.4 | E158: 21 | G158: 600 | H158: 24 | I158: 7 | J158: 0.1 | K158: 6 | L158: 0.6 | M158: 3 | N158: 0.6 | O158: 2 | P158: 24 | Q158: 7 | R158: 0 | S158: 0
B159: Luokka 1 c) | C159: =A!A5 -> Erillinen pientalo, yli 600 m2 | D159: 0.4 | E159: 21 | G159: 600 | H159: 24 | I159: 7 | J159: 0.1 | K159: 6 | L159: 0.6 | M159: 3 | N159: 0.6 | O159: 2 | P159: 24 | Q159: 7 | R159: 0 | S159: 0
B160: Luokka 1 d) | C160: =A!A6 -> Rivi- tai asuinkerrostalo, enintään kaksi kerrosta | D160: 0.4 | E160: 21 | G160: 600 | H160: 24 | I160: 7 | J160: 0.1 | K160: 6 | L160: 0.6 | M160: 3 | N160: 0.6 | O160: 2 | P160: 24 | Q160: 7 | R160: =24-P160 -> 0 | S160: =7-Q160 -> 0
B161: Luokka 2 | C161: =A!A7 -> Asuinkerrostalo, vähintään kolme kerrosta | D161: 0.5 | E161: 21 | G161: 600 | H161: 24 | I161: 7 | J161: 0.1 | K161: 9 | L161: 0.6 | M161: 4 | N161: 0.6 | O161: 3 | P161: 24 | Q161: 7 | R161: =24-P161 -> 0 | S161: =7-Q161 -> 0
B162: Luokka 3 | C162: =A!A8 -> Toimistorakennus, terveyskeskus | D162: 2 | E162: 21 | G162: 103 | H162: 11 | I162: 5 | J162: 0.65 | K162: 10 | L162: 0.65 | M162: 12 | N162: 0.65 | O162: 5 | P162: 13 | Q162: 5 | R162: 11 | S162: 2
B163: Luokka 4 | C163: =A!A9 -> Liikerakennus, tavaratalo, tms. | D163: 2 | E163: 18 | G163: 68 | H163: 13 | I163: 6 | J163: 1 | K163: 19 | L163: 1 | M163: 1 | N163: 1 | O163: 2 | P163: 15 | Q163: 6 | R163: 9 | S163: 1
B164: Luokka 5 | C164: =A!A10 -> Majoitusliikerakennus | D164: 2 | E164: 21 | G164: 685 | H164: 24 | I164: 7 | J164: 0.3 | K164: 11 | L164: 0.3 | M164: 4 | N164: 0.3 | O164: 4 | P164: 24 | Q164: 7 | R164: 0 | S164: 0
B165: Luokka 6 | C165: =A!A11 -> Opetusrakennus tai päiväkoti | D165: 3 | E165: 21 | G165: 188 | H165: 8 | I165: 5 | J165: 0.6 | K165: 14 | L165: 0.6 | M165: 8 | N165: 0.6 | O165: 14 | P165: 10 | Q165: 5 | R165: 14 | S165: 2
B166: Luokka 7 | C166: =A!A12 -> Liikuntahalli pois lukien uima- ja jäähällit | D166: 2 | E166: 18 | G166: 343 | H166: 14 | I166: 7 | J166: 0.5 | K166: 10 | L166: 0.5 | M166: 0 | N166: 0.5 | O166: 5 | P166: 16 | Q166: 7 | R166: 8 | S166: 0
B167: Luokka 8 | C167: =A!A13 -> Sairaala | D167: 4 | E167: 22 | G167: 515 | H167: 24 | I167: 7 | J167: 0.6 | K167: 7 | L167: 0.6 | M167: 9 | N167: 0.6 | O167: 8 | P167: 24 | Q167: 7 | R167: 0 | S167: 0
B168: Luokka 9 | C168: =A!A14 -> Muu rakennus
C169: =MATCH(Rakennusluokka,C157:C167,0) -> 1 | D169: =INDEX(D157:D167,C169) -> 0.4 | G169: =INDEX(G157:G167,$C$169) -> 600 | H169: =INDEX(H157:H167,$C$169) -> 24 | I169: 7 | J169: 0.1 | K169: 6 | L169: 0.6 | M169: 3 | N169: =INDEX(N157:N167,$C$169) -> 0.6 | O169: 2 | P169: 24 | Q169: 7 | R169: 0 | S169: 0
D171: ηlkv,siirto
D172: Kiertojoh- don ominais- pituus, m/m2 | E172: Kierto | F172: eristämätön | G172: suojaputkessa | H172: eristetty perustaso | I172: eristetty parempi
B173: Luokka 1 a) | C173: =A!A3 -> Erillinen pientalo, 50 … 150 m2 | D173: 0.2 | E173: 0.96 | F173: 0.75 | G173: 0.85 | H173: 0.89 | I173: 0.92
B174: Luokka 1 b) | C174: =A!A4 -> Erillinen pientalo, yli 150 … 600 m2 | D174: 0.2 | E174: 0.96 | F174: 0.75 | G174: 0.85 | H174: 0.89 | I174: 0.92
B175: Luokka 1 c) | C175: =A!A5 -> Erillinen pientalo, yli 600 m2 | D175: 0.2 | E175: 0.96 | F175: 0.75 | G175: 0.86 | H175: 0.89 | I175: 0.92
B176: Luokka 1 d) | C176: =A!A6 -> Rivi- tai asuinkerrostalo, enintään kaksi kerrosta | D176: 0.2 | E176: 0.96 | F176: 0.75 | G176: 0.78 | H176: 0.89 | I176: 0.92
B177: Luokka 2 | C177: =A!A7 -> Asuinkerrostalo, vähintään kolme kerrosta | D177: 0.2 | E177: 0.97 | F177: 0.76 | G177: 0.86 | H177: 0.9 | I177: 0.94
B178: Luokka 3 | C178: =A!A8 -> Toimistorakennus, terveyskeskus | D178: 0.06 | E178: 0.88 | F178: 0.69 | G178: 0.78 | H178: 0.82 | I178: 0.85
B179: Luokka 4 | C179: =A!A9 -> Liikerakennus, tavaratalo, tms. | D179: 0.06 | E179: 0.87 | F179: 0.68 | G179: 0.77 | H179: 0.81 | I179: 0.84
B180: Luokka 5 | C180: =A!A10 -> Majoitusliikerakennus | D180: 0.25 | E180: 0.97 | F180: 0.76 | G180: 0.86 | H180: 0.9 | I180: 0.94
B181: Luokka 6 | C181: =A!A11 -> Opetusrakennus tai päiväkoti | D181: 0.2 | E181: 0.89 | F181: 0.7 | G181: 0.79 | H181: 0.83 | I181: 0.86
B182: Luokka 7 | C182: =A!A12 -> Liikuntahalli pois lukien uima- ja jäähällit | D182: 0.06 | E182: 0.98 | F182: 0.77 | G182: 0.87 | H182: 0.91 | I182: 0.95
B183: Luokka 8 | C183: =A!A13 -> Sairaala | D183: 0.25 | E183: 0.94 | F183: 0.74 | G183: 0.84 | H183: 0.88 | I183: 0.91
B184: Luokka 9 | C184: =A!A14 -> Muu rakennus
C185: =MATCH(Rakennusluokka,C173:C184,0) -> 1 | D185: =INDEX(D173:D183,$C$185) -> 0.2 | E185: 0.96 | F185: 0.75 | G185: 0.85 | H185: 0.89 | I185: 0.92 | J185: 1 | K185: 1 | L185: 1 | M185: 1 | N185: 1 | O185: 1
D188: Erilliset pientalot sekä rivi- ja ketjutalot | F188: Muut isommat rakennukset
D189: ηtuotto | E189: etuotto | F189: ηtuotto | G189: etuotto
C190: Standardi öljy | D190: 0.81 | E190: 0.99 | F190: 0.9 | G190: 0.24
C191: Standardi kaasu | D191: 0.81 | E191: 0.59 | F191: 0.9 | G191: 0.11
C192: Kondenssi öljy | D192: 0.87 | E192: 1.07 | F192: 0.95 | G192: 0.25
C193: Kondenssi kaasu | D193: 0.92 | E193: 0.68 | F193: 1.01 | G193: 0.12
C194: Pellettikattila | D194: 0.75 | E194: 0.77 | F194: 0.84 | G194: 0.13
C195: Puukattila energiavaraajalla | D195: 0.73 | E195: 0.38 | F195: 0.82 | G195: 0.25
C196: Sähkökattila | D196: 0.88 | E196: 0.02 | F196: 0.88 | G196: 0.02
C197: Kaukolämpö | D197: 0.94 | E197: 0.6 | F197: 0.97 | G197: 0.07
C198: Suora sähkö | D198: 1 | E198: 0 | F198: 1 | G198: 0
C199: =Lämmitys_tapa -> Kaukolämpö | D199: =INDEX(D190:D198,LämmitystapaV) -> 0.81 | F199: =INDEX(F190:F198,LämmitystapaV) -> 0.9
C205: Energiamuotojen kertoimet
C206: sähkö | D206: 1.2
C207: kaukolämpö | D207: 0.5
C208: kaukojäähdytys | D208: 0.28 | U208: kaukojäähdytys | V208: 0.28
C209: fossiiliset polttoaineet | D209: 1 | U209: fossiiliset polttoaineet | V209: 1
C210: rakennuksessa käytettävät uusiutuvat polttoaineet | D210: 0.5 | U210: rakennuksessa käytettävät uusiutuvat polttoaineet | V210: 0.5

Sheet A (hidden)
A1: =MATCH(Rakennusluokka,RakLuokka,0) -> 1 | B1: =Kerroslukumäärä -> 1 | C1: =MATCH(Rakennusvaipan_massiivisuus,RakVaipMassiivisuus,0) -> 1 | D1: =MATCH(Ulkoseinän_tyyppi,UlkoseinänTyyppi,0) -> 2 | E1: =MATCH(Alapohjan_tyyppi,AlapohjanTyyp,0) -> 1 | F1: =Ikkunoiden_U_arvo -> 1 | G1: =MATCH(Koneellinen_ilmanvaihto,KoneellinenIV,0) -> 2 | H1: =MATCH(Jälkilämmityspatteri,JlkLämPatteri,0) -> 1 | I1: =MATCH(Lämmitys_tapa,Lämmitystapa,0) -> 1 | J1: =MATCH(Tilojen_lämmönjakojärjestelmä,TilLämJakoJärj,0) -> 7 | K1: =Varaavien_tulisijojen_määrä -> 0 | L1: =MATCH(Lämpimän_käyttöveden_varastointi,LKVVarastointi,0) -> 10 | M1: =MATCH(Lämpimän_käyttöveden__kierto__ja_siirtojohdot,LKVKiertoJaSiirto,0) -> 8 | N1: =MATCH(Käyttöveteen_kytkettyjä_lämmityslaitteita,LKVPatteri,0) -> 1 | O1: =MATCH(Jäteilman_lämpötila,JäteilmLämpTila,0) ->  | P1: =MATCH(Aurinkolämpö__tukemaan_käyttöveden_lämmitystä,Aurinkolämpö,0) -> 2 | Q1: =MATCH(Suuntaus,AurSuunta,0) -> 1 | V1: =MATCH(V2,V3:V5,0) -> 
A2: Rakennusluokka | B2: Kerroslukumäärä | C2: Rakennusvaipan massiivisuus | D2: Ulkoseinän tyyppi | E2: Alapohjan tyyppi | F2: Ikkunoiden U-arvo | G2: Koneellinen ilmanvaihto | H2: Jälkilämmityspatteri | I2: Lämmitystapa | J2: Tilojen lämmönjakojärjestelmä | K2: Varaavien tulisijojen määrä | L2: Lämpimän käyttöveden varastointi | M2: Lämpimän käyttöveden kierto- ja siirtojohdot | N2: käyttöveteen kytkettyjä lämmityslaitteita | O2: Jäteilman alin lämpötila | P2: Aurinkolämpö (tukemaan käyttöveden lämmitystä) | Q2: Aurinkokeräimen suuntaus | R2: Aurinkosähkö | S2: Suuntaus | T2: Kallistuskulma | U2: Aurinkosähkökennon tyyppi | V2: Aurinkokennon asennustapa
A3: Erillinen pientalo, 50 … 150 m2 | B3: 1 | C3: Kevytrakenteinen | D3: Hirsi | E3: Maata vasten | F3: 1 | G3: Korkealla hyötysuhteella toimiva ilmanvaihto | H3: Kytketty lämmitysjärjestelmään | I3: Kaukolämpö | J3: Vesiradiaattori 45/35 °C - jakojohdot eristetty | K3: 0 | L3: ei varaajaa | M3: Ei kiertoa - siirtoputket eristämättömät | N3: Ei | O3: - | P3: Ei | Q3: etelä/kaakko/lounas | R3: Ei | S3: etelä/kaakko/lounas | T3: < 30° | U3: piipohjaiset yksikiteiset kennot | V3: tuulettamaton moduuli
A4: Erillinen pientalo, yli 150 … 600 m2 | B4: 2 | C4: Keskiraskas I | D4: Muu seinätyyppi | E4: Ryömintätilaan rajoittuva | F4: 0.9 | G4: Normaalilla hyötysuhteella toimiva ilmanvaihto | H4: Sähkölämmityspatteri | I4: Suora sähkö | J4: Vesiradiaattori 45/35 °C - jakojohdot eristämätön | K4: 1 | L4: 50 l varaaja, 40 mm eristys | M4: Ei kiertoa - siirtoputket suojaputkessa | N4: Kyllä | O4: -3 °C | P4: Kyllä | Q4: itä/länsi | R4: Kyllä | S4: itä/länsi | T4: 30° - 70° | U4: piipohjaiset monikiteiset kennot | V4: hieman tuuletettu moduuli
A5: Erillinen pientalo, yli 600 m2 | B5: 3 | C5: Keskiraskas II | F5: 0.8 | G5: Alhaisella hyötysuhteella toimiva ilmanvaihto | I5: Pelletti | J5: Vesiradiaattori 45/35 °C - jakotukilla | K5: 2 | L5: 50 l varaaja, 100 mm eristys | M5: Ei kiertoa - siirtoputket eristetty perustasoon | O5: +1 °C | Q5: pohjoinen/koillinen/luode | S5: pohjoinen/koillinen/luode | T5: > 70° | U5: ohutkalvotekniikalla toteutettu CuInGaSe2 kenno | V5: voimakkaasti tuulettuva tai koneellisesti tuuletettu moduuli
A6: Rivi- tai asuinkerrostalo, enintään kaksi kerrosta | B6: 4 | C6: Raskasrakenteinen | F6: 0.7 | I6: Puukattila | J6: Vesiradiaattori 70/40 °C - jakojohdot eristetty | K6: 3 | L6: 100 l varaaja, 40 mm eristys | M6: Ei kiertoa - siirtoputket eristetty korkeaan tasoon | O6: +3 °C | U6: ohutkalvotekniikalla toteutettu CdTe kenno
A7: Asuinkerrostalo, vähintään kolme kerrosta | B7: 5 | F7: 0.6 | I7: Öljy | J7: Vesiradiaattori 70/40 °C - jakojohdot eristämätön | K7: 4 | L7: 100 l varaaja, 100 mm eristys | M7: Kiertojohto - ei tietoa eristystasosta | O7: +5 °C | U7: ohutkalvo kiteetön pii kennot
A8: Toimistorakennus, terveyskeskus | B8: 6 | I8: Maalämpöpumppu | J8: Vesiradiaattori 70/40 °C - jakotukilla | K8: 5 | L8: 150 l varaaja, 40 mm eristys | M8: Kiertojohto - eristetty perustasoon | U8: muut ohutkalvotekniikalla toteutetut kennot
A9: Liikerakennus, tavaratalo, tms. | B9: 7 | I9: Poistoilmalämpöpumppu | J9: Vesikiertoinen lattialämmitys 40/30 °C - maata vasten rajoittuvassa rakenteessa | K9: 6 | L9: 150 l varaaja, 100 mm eristys | M9: Kiertojohto - eristetty korkeaan tasoon
A10: Majoitusliikerakennus | B10: 8 | J10: Vesikiertoinen lattialämmitys 40/30 °C - ryömintätilaa vasten rajoittuvassa rakenteessa | K10: 7 | L10: 200 l varaaja, 40 mm eristys | M10: Kiertojohto - suojaputkessa
A11: Opetusrakennus tai päiväkoti | B11: 9 | J11: Vesikiertoinen lattialämmitys 40/30 °C - ulkoilmaan rajoittuvassa rakenteessa | K11: 8 | L11: 200 l varaaja, 100 mm eristys | M11: Kiertojohto - suojaputki + eristetty perustasoon
A12: Liikuntahalli pois lukien uima- ja jäähällit | B12: 10 | J12: Vesikiertoinen lattialämmitys 40/30 °C - lämpimään tilaan rajoittuvassa rakenteessa | K12: 9 | L12: 300 l varaaja, 40 mm eristys | M12: Kiertojohto - suojaputki + eristetty korkeaan tasoon
A13: Sairaala | B13: 11 | J13: Sähkölämmitys - kattolämmitys ulkoilmaan rajoittuvassa rakenteessa | K13: 10 | L13: 300 l varaaja, 100 mm eristys
A14: Muu rakennus | B14: 12 | J14: Sähkölämmitys - kattolämmitys lämpimään tilaan rajoittuvassa rakenteessa | L14: 500 l varaaja, 40 mm eristys
B15: 13 | J15: Sähkölämmitys - ikkunalämmitys | L15: 500 l varaaja, 100 mm eristys
B16: 14 | J16: Sähkölämmitys - ilmanvaihtolämmitys | L16: 1000 l varaaja, 40 mm eristys
B17: 15 | J17: Sähköpatterilämmitys | L17: 1000 l varaaja, 100 mm eristys
J18: Sähköinen lattialämmitys - maata vasten rajoittuvassa rakenteessa | L18: 2000 l varaaja, 40 mm eristys
J19: Sähköinen lattialämmitys - ryömintätilaan tai ulkoilmaan rajoittuvassa rakenteessa | L19: 2000 l varaaja, 100 mm eristys
J20: Sähköinen lattialämmitys - lämpimään tilaan rajoittuvassa rakenteessa | L20: 3000 l varaaja, 40 mm eristys
J21: Muu lämmityslaite | L21: 3000 l varaaja, 100 mm eristys

Sheet Laskentatulokset ja kuvaajat (hidden)
W5: Energiatehokkuusluokka
B6: Ulkoseinät | C6: =Data!P4 -> 2586.217711 | D6: =C6/SUM($C$6:$C$14) -> 0.1503998958 | U6: E-luku vaatimustaso | W6: A | X6: B | Y6: C | Z6: D | AA6: E | AB6: F | AC6: G
B7: Yläpohja | C7: =Data!P5 -> 1812.641086 | D7: =C7/SUM($C$6:$C$14) -> 0.1054130243 | T7: Erillinen pientalo, 50 … 150 m2 | U7: =200-0.6*Lämmitetty_nettopinta_ala__Anetto -> 110.24 | W7: =110-0.2*Lämmitetty_nettopinta_ala__Anetto -> 80.08 | X7: =215-0.6*Lämmitetty_nettopinta_ala__Anetto -> 125.24 | Y7: =252-0.6*Lämmitetty_nettopinta_ala__Anetto -> 162.24 | Z7: =332-0.6*Lämmitetty_nettopinta_ala__Anetto -> 242.24 | AA7: =462-0.6*Lämmitetty_nettopinta_ala__Anetto -> 372.24 | AB7: =532-0.6*Lämmitetty_nettopinta_ala__Anetto -> 442.24
B8: Alapohja | C8: =Data!P10 -> 2381.96112 | D8: 0.1385214797 | T8: Erillinen pientalo, yli 150 … 600 m2 | U8: =116-0.04*Lämmitetty_nettopinta_ala__Anetto -> 110.016 | W8: =83-0.02*Lämmitetty_nettopinta_ala__Anetto -> 80.008 | X8: =131-0.04*Lämmitetty_nettopinta_ala__Anetto -> 125.016 | Y8: =173-0.07*Lämmitetty_nettopinta_ala__Anetto -> 162.528 | Z8: =253-0.07*Lämmitetty_nettopinta_ala__Anetto -> 242.528 | AA8: =383-0.07*Lämmitetty_nettopinta_ala__Anetto -> 372.528 | AB8: =453-0.07*Lämmitetty_nettopinta_ala__Anetto -> 442.528
B9: Katto- ikkunat | C9: =Data!P8 -> 0 | D9: 0 | T9: Erillinen pientalo, yli 600 m2 | U9: 92 | W9: 70 | X9: 106 | Y9: 130 | Z9: 210 | AA9: 340 | AB9: 410
B10: Ikkunat | C10: =Data!P7 -> 3423.877607 | D10: 0.1991134903 | T10: Rivi- tai asuinkerrostalo, enintään kaksi kerrosta | U10: 105 | W10: 80 | X10: 110 | Y10: 150 | Z10: 210 | AA10: 340 | AB10: 410
B11: Ovet | C11: =Data!P9 -> 1103.955504 | D11: 0.0641998514 | T11: Asuinkerrostalo, vähintään kolme kerrosta | U11: 90 | W11: 75 | X11: 100 | Y11: 130 | Z11: 160 | AA11: 190 | AB11: 240
B12: Vuotoilma | C12: =Data!P18 -> 2286.544438 | D12: 0.1329725814 | T12: Toimistorakennus, terveyskeskus | U12: 100 | W12: 80 | X12: 120 | Y12: 170 | Z12: 200 | AA12: 240 | AB12: 300
B13: Tuloilman lämpene- minen tilassa | C13: =Data!P26 -> 1887.11424 | D13: 0.1097439646 | T13: Liikerakennus, tavaratalo, tms. | U13: 135 | W13: 90 | X13: 170 | Y13: 240 | Z13: 280 | AA13: 340 | AB13: 390
B14: Kylmäsillat | C14: =Data!P12 -> 1713.296693 | D14: 0.0996357124 | T14: Majoitusliikerakennus | U14: 160 | W14: 90 | X14: 170 | Y14: 240 | Z14: 280 | AA14: 340 | AB14: 450
T15: Opetusrakennus tai päiväkoti | U15: 100 | W15: 90 | X15: 130 | Y15: 170 | Z15: 230 | AA15: 300 | AB15: 360
T16: Liikuntahalli pois lukien uima- ja jäähällit | U16: 100 | W16: 90 | X16: 130 | Y16: 170 | Z16: 190 | AA16: 240 | AB16: 280
T17: Sairaala | U17: 320 | W17: 150 | X17: 350 | Y17: 450 | Z17: 550 | AA17: 650 | AB17: 800
T18: Muu rakennus
T19: =MATCH(Rakennusluokka,T7:T18,0) -> 1 | U19: =INDEX(U7:U17,$T$19) -> 110.24 | V19: =INDEX(V7:V17,$T$19) -> 0 | W19: 80.08 | X19: 125.24 | Y19: 162.24 | Z19: 242.24 | AA19: 372.24 | AB19: 442.24
T21: Energialuokka | U21: =IF(F36<=W19,W6,(IF(AND(F36>W19,F36<=X19),X6,(IF(AND(F36>X19,F36<=Y19),Y6,(IF(AND(F36>Y19,F36<=Z19),Z6,(IF(AND(F36>Z19,F36<=AA19),AA6,(IF(AND(F36>AA19,F36<=AB19),AB6,(IF(F36>AB19,AC6))))))))))))) -> B
C23: E-luku valituilla U-arvoilla | H23: E-luku U-arvon vertailuarvoilla
D24: Energiamuodon kerroin | E24: Laskennallinen ostoenergiankulutus | F24: E-luku
B25: Tilojen lämmitys | C25: =CHOOSE(LämmitystapaV,Data!P70/Data!P86,Data!P70/Data!P86,Data!P70/Data!P86,Data!P70/Data!P86,Data!P70/Data!P86,Data!P103/Mitoitus!S47+Data!P102,Data!P111/Mitoitus!W47+Data!P110) -> 9282.169086 | D25: =CHOOSE(LämmitystapaV,Data!D207,Data!D206,Data!D210,Data!D210,Data!D209,Data!D206,Data!D206) -> 0.5 | E25: =C25/Lämmitetty_nettopinta_ala__Anetto -> 62.0465848 | F25: =C25*D25/Mitoitus!$G$16 -> 31.0232924 | H25: =CHOOSE(LämmitystapaV,Data!AH70/Data!AH86,Data!AH70/Data!AH86,Data!AH70/Data!AH86,Data!AH70/Data!AH86,Data!AH70/Data!AH86,Data!AH103/Mitoitus!S47+Data!AH102,Data!AH111/Mitoitus!W47+Data!AH110) -> 9095.845469 | I25: =D25 -> 0.5 | J25: =H25/Lämmitetty_nettopinta_ala__Anetto -> 60.80110607 | K25: =H25*I25/Mitoitus!$G$16 -> 30.40055304
B26: Varaavat tulisijat | C26: =Data!P83/Data!P82 -> 0 | D26: 0.5 | E26: 0 | F26: =C26*D26/Mitoitus!G16 -> 0 | H26: =Data!AH83/Data!AH82 -> 0 | I26: 0.5 | J26: 0 | K26: =H26*I26/Mitoitus!G16 -> 0
B27: Käyttövesi | C27: =CHOOSE(LämmitystapaV,Data!P80,Data!P80,Data!P80,Data!P80,Data!P80,Data!P105/Mitoitus!S49+Data!P104,Data!P113/Mitoitus!W47+Data!P112) -> 8387.738 | D27: =CHOOSE(LämmitystapaV,Data!D207,Data!D206,Data!D210,Data!D210,Data!D209,Data!D206,Data!D206) -> 0.5 | E27: 56.06776738 | F27: =C27*D27/Mitoitus!$G$16 -> 28.03388369 | H27: =CHOOSE(LämmitystapaV,Data!AH80,Data!AH80,Data!AH80,Data!AH80,Data!AH80,Data!AH105/Mitoitus!S49+Data!AH104,Data!AH113/Mitoitus!W47+Data!AH112) -> 8387.738 | I27: 0.5 | J27: 56.06776738 | K27: =H27*I27/Mitoitus!$G$16 -> 28.03388369
B28: Aurinko- lämpö | C28: =Data!P37 -> 1170 | D28: 0 | E28: 7.820855615 | F28: =C28*D28 -> 0 | J28: 0
B29: Ilman- vaihdon jälkiläm- mityspatteri | C29: =IF(JälkilämmityspatteriV=1,CHOOSE(LämmitystapaV,Data!P25/Data!P86,Data!P25/Data!P86,Data!P25/Data!P86,Data!P25/Data!P86,Data!P25/Data!P86,(Data!P25/Data!P86)/Mitoitus!S47,(Data!P25/Data!P86)/Mitoitus!W47),Data!P25) -> 1922.185634 | D29: =IF(JälkilämmityspatteriV=1,CHOOSE(LämmitystapaV,Data!D207,Data!D206,Data!D210,Data!D210,Data!D209,Data!D206,Data!D206),Data!D206) -> 0.5 | E29: 12.84883445 | F29: =C29*D29/Mitoitus!$G$16 -> 6.424417226 | H29: =IF(JälkilämmityspatteriV=1,CHOOSE(LämmitystapaV,Data!AH25/Data!AH86,Data!AH25/Data!AH86,Data!AH25/Data!AH86,Data!AH25/Data!AH86,Data!AH25/Data!AH86,(Data!AH25/Data!AH86)/Mitoitus!S47,(Data!AH25/Data!AH86)/Mitoitus!W47,Data!AH25),Data!AH25) -> 1922.185634 | I29: 0.5 | J29: 12.84883445 | K29: =H29*I29/Mitoitus!$G$16 -> 6.424417226
B30: Kulutus- ja LVI-sähkö | C30: =Data!P92+Data!P97+Data!P94+Data!P96+Data!P95-Mitoitus!U57 -> 4498.942171 | D30: =Data!D206 -> 1.2 | E30: 30.07314286 | F30: =C30*D30/Mitoitus!$G$16 -> 36.08777143 | H30: =Data!AH92+Data!AH97+Data!AH94+Data!AH96+Data!AH95-Mitoitus!U57 -> 4498.942171 | I30: 1.2 | J30: 30.07314286 | K30: =H30*I30/Mitoitus!$G$16 -> 36.08777143
B36: E-luku | E36: =E25+E26+E27+E29+E30 -> 161.0363295 | F36: =F25+F26+F27+F29+F30 -> 101.5693647 | J36: =J25+J26+J27+J29+J30 -> 159.7908508 | K36: =K25+K26+K27+K29+K30 -> 100.9466254
